{"text_format":"1","workbook":"xlsx","n_sheets":4,"sheets":["始めに1号-⑥賃金上昇要件確認ツール","1号-⑥賃上げ前","賃上げ後","1号-⑤(賃金引上げ計画の表明書※申請日以後の賃上げのみ必要)"],"not_rendered":{"charts":0,"images":1,"macros":1,"external_links":0,"defined_names":2,"comments":2,"pivot_tables":0},"unopened":[],"bounds":{"document_bytes":16777216,"sheet_cells":100000,"rows_first":2000,"rows_last":500,"rows_between":2000,"halvings":0,"cell_chars":16384,"cell_head_chars":4096},"cells_cut":0,"cells_raw":0,"read":"whole","date_system":"1900"}

{"sheet":"始めに1号-⑥賃金上昇要件確認ツール","index":0,"n_rows":7,"n_cols":2,"rows_kept":7,"cut":false,"hidden":false,"merged":[[2,1,2,6],[5,1,5,6],[6,1,6,6]]}
[]
[null,"賃上げ要件確認ツール（マクロ版）"]
[null,"①初めに、「コンテンツの有効化」をクリックしてください。"]
[]
[]
[null,"②賃上げ前後で、手当と従業員名等が大きく変わらない場合、賃上げ後シートの右上のマクロボタンをそれぞれクリックすると、自動で転記されます。"]
[null,"③別途、通常版を作成いただく必要はございません。もし、このエクセルファイル（マクロ版）がうまく動かない場合、通常版をお試し下さい。"]

{"sheet":"1号-⑥賃上げ前","index":1,"n_rows":542,"n_cols":15,"rows_kept":542,"cut":false,"hidden":false,"merged":[[507,1,523,1],[507,2,507,3],[507,4,507,13],[507,14,508,14],[508,2,508,3],[509,2,509,3],[510,2,510,3],[511,2,511,3],[512,2,521,2],[522,2,522,3],[523,2,523,3],[525,1,541,1],[525,2,525,3],[525,4,525,13],[525,14,526,14],[526,2,526,3],[527,2,527,3],[528,2,528,3],[529,2,529,3],[530,2,539,2],[540,2,540,3],[541,2,541,3],[489,1,505,1],[489,2,489,3],[489,4,489,13],[489,14,490,14],[490,2,490,3],[491,2,491,3],[492,2,492,3],[493,2,493,3],[494,2,503,2],[504,2,504,3],[505,2,505,3],[471,1,487,1],[471,2,471,3],[471,4,471,13],[471,14,472,14],[472,2,472,3],[473,2,473,3],[474,2,474,3],[475,2,475,3],[476,2,485,2],[486,2,486,3],[487,2,487,3],[453,1,469,1],[453,2,453,3],[453,4,453,13],[453,14,454,14],[454,2,454,3],[455,2,455,3],[456,2,456,3],[457,2,457,3],[458,2,467,2],[468,2,468,3],[469,2,469,3],[435,1,451,1],[435,2,435,3],[435,4,435,13],[435,14,436,14],[436,2,436,3],[437,2,437,3],[438,2,438,3],[439,2,439,3],[440,2,449,2],[450,2,450,3],[451,2,451,3],[417,1,433,1],[417,2,417,3],[417,4,417,13],[417,14,418,14],[418,2,418,3],[419,2,419,3],[420,2,420,3],[421,2,421,3],[422,2,431,2],[432,2,432,3],[433,2,433,3],[399,1,415,1],[399,2,399,3],[399,4,399,13],[399,14,400,14],[400,2,400,3],[401,2,401,3],[402,2,402,3],[403,2,403,3],[404,2,413,2],[414,2,414,3],[415,2,415,3],[381,1,397,1],[381,2,381,3],[381,4,381,13],[381,14,382,14],[382,2,382,3],[383,2,383,3],[384,2,384,3],[385,2,385,3],[386,2,395,2],[396,2,396,3],[397,2,397,3],[363,1,379,1],[363,2,363,3],[363,4,363,13],[363,14,364,14],[364,2,364,3],[365,2,365,3],[366,2,366,3],[367,2,367,3],[368,2,377,2],[378,2,378,3],[379,2,379,3],[345,1,361,1],[345,2,345,3],[345,4,345,13],[345,14,346,14],[346,2,346,3],[347,2,347,3],[348,2,348,3],[349,2,349,3],[350,2,359,2],[360,2,360,3],[361,2,361,3],[327,1,343,1],[327,2,327,3],[327,4,327,13],[327,14,328,14],[328,2,328,3],[329,2,329,3],[330,2,330,3],[331,2,331,3],[332,2,341,2],[342,2,342,3],[343,2,343,3],[309,1,325,1],[309,2,309,3],[309,4,309,13],[309,14,310,14],[310,2,310,3],[311,2,311,3],[312,2,312,3],[313,2,313,3],[314,2,323,2],[324,2,324,3],[325,2,325,3],[291,1,307,1],[291,2,291,3],[291,4,291,13],[291,14,292,14],[292,2,292,3],[293,2,293,3],[294,2,294,3],[295,2,295,3],[296,2,305,2],[306,2,306,3],[307,2,307,3],[273,1,289,1],[273,2,273,3],[273,4,273,13],[273,14,274,14],[274,2,274,3],[275,2,275,3],[276,2,276,3],[277,2,277,3],[278,2,287,2],[288,2,288,3],[289,2,289,3],[255,1,271,1],[255,2,255,3],[255,4,255,13],[255,14,256,14],[256,2,256,3],[257,2,257,3],[258,2,258,3],[259,2,259,3],[260,2,269,2],[270,2,270,3],[271,2,271,3],[237,1,253,1],[237,2,237,3],[237,4,237,13],[237,14,238,14],[238,2,238,3],[239,2,239,3],[240,2,240,3],[241,2,241,3],[242,2,251,2],[252,2,252,3],[253,2,253,3],[219,1,235,1],[219,2,219,3],[219,4,219,13],[219,14,220,14],[220,2,220,3],[221,2,221,3],[222,2,222,3],[223,2,223,3],[224,2,233,2],[234,2,234,3],[235,2,235,3],[201,1,217,1],[201,2,201,3],[201,4,201,13],[201,14,202,14],[202,2,202,3],[203,2,203,3],[204,2,204,3],[205,2,205,3],[206,2,215,2],[216,2,216,3],[217,2,217,3],[183,1,199,1],[183,2,183,3],[183,4,183,13],[183,14,184,14],[184,2,184,3],[185,2,185,3],[186,2,186,3],[187,2,187,3],[188,2,197,2],[198,2,198,3],[199,2,199,3],[165,1,181,1],[165,2,165,3],[165,4,165,13],[165,14,166,14],[166,2,166,3],[167,2,167,3],[168,2,168,3],[169,2,169,3],[170,2,179,2],[180,2,180,3],[181,2,181,3],[147,1,163,1],[147,2,147,3],[147,4,147,13],[147,14,148,14],[148,2,148,3],[149,2,149,3],[150,2,150,3],[151,2,151,3],[152,2,161,2],[162,2,162,3],[163,2,163,3],[129,1,145,1],[129,2,129,3],[129,4,129,13],[129,14,130,14],[130,2,130,3],[131,2,131,3],[132,2,132,3],[133,2,133,3],[134,2,143,2],[144,2,144,3],[145,2,145,3],[111,1,127,1],[111,2,111,3],[111,4,111,13],[111,14,112,14],[112,2,112,3],[113,2,113,3],[114,2,114,3],[115,2,115,3],[116,2,125,2],[126,2,126,3],[127,2,127,3],[93,1,109,1],[93,2,93,3],[93,4,93,13],[93,14,94,14],[94,2,94,3],[95,2,95,3],[96,2,96,3],[97,2,97,3],[98,2,107,2],[108,2,108,3],[109,2,109,3],[75,1,91,1],[75,2,75,3],[75,4,75,13],[75,14,76,14],[76,2,76,3],[77,2,77,3],[78,2,78,3],[79,2,79,3],[80,2,89,2],[90,2,90,3],[91,2,91,3],[57,1,73,1],[57,2,57,3],[57,4,57,13],[57,14,58,14],[58,2,58,3],[59,2,59,3],[60,2,60,3],[61,2,61,3],[62,2,71,2],[72,2,72,3],[73,2,73,3],[3,4,3,13],[3,14,4,14],[4,2,4,3],[5,2,5,3],[6,2,6,3],[39,2,39,3],[40,2,40,3],[41,2,41,3],[54,2,54,3],[36,2,36,3],[37,2,37,3],[39,4,39,13],[39,14,40,14],[43,2,43,3],[44,2,53,2],[21,4,21,13],[21,14,22,14],[22,2,22,3],[23,2,23,3],[24,2,24,3],[3,1,19,1],[19,2,19,3],[42,2,42,3],[3,2,3,3],[7,2,7,3],[8,2,17,2],[18,2,18,3],[21,1,37,1],[21,2,21,3],[25,2,25,3],[26,2,35,2],[39,1,55,1],[55,2,55,3]]}
[null,null,null,null,null,null,null,"ひと月の",null,"算定対象従業員数（この人数をシステムにも転記）"]
[null,null,null,"総賃金",{"$f":"SUM(IF(MOD(ROW(O19:O541)-19,18)=0,O19:O541,0))","v":0},"総労働時間",{"$f":"SUM(IF(MOD(ROW(O7:O529)-7,18)=0,O7:O529,0))","v":0},"平均賃金",{"$f":"E2/G2","v":{"$error":"#DIV/0!"}},"（当該シート記載人数）",{"$f":"COUNT(E8:N8,E26:N26,E44:N44,E62:N62,E80:N80,E98:N98,E116:N116,E134:N134,E152:N152,E170:N170,E188:N188,E206:N206,E224:N224,E242:N242,E260:N260,E278:N278,E296:N296,E314:N314,E332:N332,E350:N350,E368:N368,E386:N386,E404:N404,E422:N422,E440:N440,E458:N458,E476:N476,E494:N494,E512:N512,E530:N530)","v":0},"←補助上限額区分の判断人数"]
[null,null,null,null,null,null,null,null,null,null,"※自動計算"]
[null,1,"賃金算定期間",null,"令和6年12月支給分（〇/〇～〇/〇）12月支給となる対象期間",null,null,null,null,null,null,null,null,null,"合計"]
[null,null,"No",null,1,2,3,4,5,6,7,8,9,10]
[null,null,"従業員氏名",null,null,null,null,null,null,null,null,null,null,null,{"$f":"COUNTIF(E6:N6,\"<>\")","v":0}]
[null,null,"１月の月平均所定労働時間（※）",null,null,null,null,null,null,null,null,null,null,null,{"$f":"SUM(E7:N7)","v":0}]
[null,null,"基本賃金（基本給）",null,null,null,null,null,null,null,null,null,null,null,{"$f":"SUM(E8:N8)","v":0}]
[null,null,"手\n\n当","手当",null,null,null,null,null,null,null,null,null,null,{"$f":"SUM(E9:N9)","v":0}]
[null,null,null,"手当",null,null,null,null,null,null,null,null,null,null,0]
[null,null,null,"手当",null,null,null,null,null,null,null,null,null,null,0]
[null,null,null,"手当",null,null,null,null,null,null,null,null,null,null,0]
[null,null,null,"手当",null,null,null,null,null,null,null,null,null,null,0]
[null,null,null,"手当",null,null,null,null,null,null,null,null,null,null,0]
[null,null,null,"手当",null,null,null,null,null,null,null,null,null,null,0]
[null,null,null,"手当",null,null,null,null,null,null,null,null,null,null,0]
[null,null,null,"手当",null,null,null,null,null,null,null,null,null,null,0]
[null,null,null,"手当",null,null,null,null,null,null,null,null,null,null,0]
[null,null,"合計",null,{"$f":"SUM(E8:E18)","v":0},{"$f":"SUM(F8:F18)","v":0},0,0,0,0,0,0,0,0,{"$f":"SUM(E19:N19)","v":0}]
[null,null,"時間当たり平均賃金",null,{"$f":"E19/E7","v":{"$error":"#DIV/0!"}},{"$f":"F19/F7","v":{"$error":"#DIV/0!"}},{"$error":"#DIV/0!"},{"$error":"#DIV/0!"},{"$error":"#DIV/0!"},{"$error":"#DIV/0!"},{"$error":"#DIV/0!"},{"$error":"#DIV/0!"},{"$error":"#DIV/0!"},{"$error":"#DIV/0!"}]
[]
[null,2,"賃金算定期間",null,"令和6年12月支給分（〇/〇～〇/〇）12月支給となる対象期間",null,null,null,null,null,null,null,null,null,"合計"]
[null,null,"No",null,11,12,13,14,15,16,17,18,19,20]
[null,null,"従業員氏名",null,null,null,null,null,null,null,null,null,null,null,{"$f":"COUNTIF(E24:N24,\"<>\")","v":0}]
[null,null,"１月の月平均所定労働時間（※）",null,null,null,null,null,null,null,null,null,null,null,{"$f":"SUM(E25:N25)","v":0}]
[null,null,"基本賃金（基本給）",null,null,null,null,null,null,null,null,null,null,null,{"$f":"SUM(E26:N26)","v":0}]
[null,null,"手\n\n当",{"$f":"$D$9","v":"手当"},null,null,null,null,null,null,null,null,null,null,{"$f":"SUM(E27:N27)","v":0}]
[null,null,null,{"$f":"$D$10","v":"手当"},null,null,null,null,null,null,null,null,null,null,0]
[null,null,null,{"$f":"$D$11","v":"手当"},null,null,null,null,null,null,null,null,null,null,0]
[null,null,null,{"$f":"$D$12","v":"手当"},null,null,null,null,null,null,null,null,null,null,0]
[null,null,null,{"$f":"$D$13","v":"手当"},null,null,null,null,null,null,null,null,null,null,0]
[null,null,null,{"$f":"$D$14","v":"手当"},null,null,null,null,null,null,null,null,null,null,0]
[null,null,null,{"$f":"$D$15","v":"手当"},null,null,null,null,null,null,null,null,null,null,0]
[null,null,null,{"$f":"$D$16","v":"手当"},null,null,null,null,null,null,null,null,null,null,0]
[null,null,null,{"$f":"$D$17","v":"手当"},null,null,null,null,null,null,null,null,null,null,0]
[null,null,null,{"$f":"$D$18","v":"手当"},null,null,null,null,null,null,null,null,null,null,0]
[null,null,"合計",null,{"$f":"SUM(E26:E36)","v":0},{"$f":"SUM(F26:F36)","v":0},0,0,0,0,0,0,0,0,{"$f":"SUM(E37:N37)","v":0}]
[null,null,"時間当たり平均賃金",null,{"$f":"E37/E25","v":{"$error":"#DIV/0!"}},{"$f":"F37/F25","v":{"$error":"#DIV/0!"}},{"$error":"#DIV/0!"},{"$error":"#DIV/0!"},{"$error":"#DIV/0!"},{"$error":"#DIV/0!"},{"$error":"#DIV/0!"},{"$error":"#DIV/0!"},{"$error":"#DIV/0!"},{"$error":"#DIV/0!"}]
[]
[null,3,"賃金算定期間",null,"令和6年12月支給分（〇/〇～〇/〇）12月支給となる対象期間",null,null,null,null,null,null,null,null,null,"合計"]
[null,null,"No",null,21,22,23,24,25,26,27,28,29,30]
[null,null,"従業員氏名",null,null,null,null,null,null,null,null,null,null,null,{"$f":"COUNTIF(E42:N42,\"<>\")","v":0}]
[null,null,"１月の月平均所定労働時間（※）",null,null,null,null,null,null,null,null,null,null,null,{"$f":"SUM(E43:N43)","v":0}]
[null,null,"基本賃金（基本給）",null,null,null,null,null,null,null,null,null,null,null,{"$f":"SUM(E44:N44)","v":0}]
[null,null,"手\n\n当",{"$f":"$D$9","v":"手当"},null,null,null,null,null,null,null,null,null,null,{"$f":"SUM(E45:N45)","v":0}]
[null,null,null,{"$f":"$D$10","v":"手当"},null,null,null,null,null,null,null,null,null,null,0]
[null,null,null,{"$f":"$D$11","v":"手当"},null,null,null,null,null,null,null,null,null,null,0]
[null,null,null,{"$f":"$D$12","v":"手当"},null,null,null,null,null,null,null,null,null,null,0]
[null,null,null,{"$f":"$D$13","v":"手当"},null,null,null,null,null,null,null,null,null,null,0]
[null,null,null,{"$f":"$D$14","v":"手当"},null,null,null,null,null,null,null,null,null,null,0]
[null,null,null,{"$f":"$D$15","v":"手当"},null,null,null,null,null,null,null,null,null,null,0]
[null,null,null,{"$f":"$D$16","v":"手当"},null,null,null,null,null,null,null,null,null,null,0]
[null,null,null,{"$f":"$D$17","v":"手当"},null,null,null,null,null,null,null,null,null,null,0]
[null,null,null,{"$f":"$D$18","v":"手当"},null,null,null,null,null,null,null,null,null,null,0]
[null,null,"合計",null,{"$f":"SUM(E44:E54)","v":0},{"$f":"SUM(F44:F54)","v":0},0,0,0,0,0,0,0,0,{"$f":"SUM(E55:N55)","v":0}]
[null,null,"時間当たり平均賃金",null,{"$f":"E55/E43","v":{"$error":"#DIV/0!"}},{"$f":"F55/F43","v":{"$error":"#DIV/0!"}},{"$error":"#DIV/0!"},{"$error":"#DIV/0!"},{"$error":"#DIV/0!"},{"$error":"#DIV/0!"},{"$error":"#DIV/0!"},{"$error":"#DIV/0!"},{"$error":"#DIV/0!"},{"$error":"#DIV/0!"}]
[]
[null,4,"賃金算定期間",null,"令和6年12月支給分（〇/〇～〇/〇）12月支給となる対象期間",null,null,null,null,null,null,null,null,null,"合計"]
[null,null,"No",null,31,32,33,34,35,36,37,38,39,40]
[null,null,"従業員氏名",null,null,null,null,null,null,null,null,null,null,null,{"$f":"COUNTIF(E60:N60,\"<>\")","v":0}]
[null,null,"１月の月平均所定労働時間（※）",null,null,null,null,null,null,null,null,null,null,null,{"$f":"SUM(E61:N61)","v":0}]
[null,null,"基本賃金（基本給）",null,null,null,null,null,null,null,null,null,null,null,{"$f":"SUM(E62:N62)","v":0}]
[null,null,"手\n\n当",{"$f":"$D$9","v":"手当"},null,null,null,null,null,null,null,null,null,null,{"$f":"SUM(E63:N63)","v":0}]
[null,null,null,{"$f":"$D$10","v":"手当"},null,null,null,null,null,null,null,null,null,null,0]
[null,null,null,{"$f":"$D$11","v":"手当"},null,null,null,null,null,null,null,null,null,null,0]
[null,null,null,{"$f":"$D$12","v":"手当"},null,null,null,null,null,null,null,null,null,null,0]
[null,null,null,{"$f":"$D$13","v":"手当"},null,null,null,null,null,null,null,null,null,null,0]
[null,null,null,{"$f":"$D$14","v":"手当"},null,null,null,null,null,null,null,null,null,null,0]
[null,null,null,{"$f":"$D$15","v":"手当"},null,null,null,null,null,null,null,null,null,null,0]
[null,null,null,{"$f":"$D$16","v":"手当"},null,null,null,null,null,null,null,null,null,null,0]
[null,null,null,{"$f":"$D$17","v":"手当"},null,null,null,null,null,null,null,null,null,null,0]
[null,null,null,{"$f":"$D$18","v":"手当"},null,null,null,null,null,null,null,null,null,null,0]
[null,null,"合計",null,{"$f":"SUM(E62:E72)","v":0},{"$f":"SUM(F62:F72)","v":0},0,0,0,0,0,0,0,0,{"$f":"SUM(E73:N73)","v":0}]
[null,null,"時間当たり平均賃金",null,{"$f":"E73/E61","v":{"$error":"#DIV/0!"}},{"$f":"F73/F61","v":{"$error":"#DIV/0!"}},{"$error":"#DIV/0!"},{"$error":"#DIV/0!"},{"$error":"#DIV/0!"},{"$error":"#DIV/0!"},{"$error":"#DIV/0!"},{"$error":"#DIV/0!"},{"$error":"#DIV/0!"},{"$error":"#DIV/0!"}]
[]
[null,5,"賃金算定期間",null,"令和6年12月支給分（〇/〇～〇/〇）12月支給となる対象期間",null,null,null,null,null,null,null,null,null,"合計"]
[null,null,"No",null,41,42,43,44,45,46,47,48,49,50]
[null,null,"従業員氏名",null,null,null,null,null,null,null,null,null,null,null,{"$f":"COUNTIF(E78:N78,\"<>\")","v":0}]
[null,null,"１月の月平均所定労働時間（※）",null,null,null,null,null,null,null,null,null,null,null,{"$f":"SUM(E79:N79)","v":0}]
[null,null,"基本賃金（基本給）",null,null,null,null,null,null,null,null,null,null,null,{"$f":"SUM(E80:N80)","v":0}]
[null,null,"手\n\n当",{"$f":"$D$9","v":"手当"},null,null,null,null,null,null,null,null,null,null,{"$f":"SUM(E81:N81)","v":0}]
[null,null,null,{"$f":"$D$10","v":"手当"},null,null,null,null,null,null,null,null,null,null,0]
[null,null,null,{"$f":"$D$11","v":"手当"},null,null,null,null,null,null,null,null,null,null,0]
[null,null,null,{"$f":"$D$12","v":"手当"},null,null,null,null,null,null,null,null,null,null,0]
[null,null,null,{"$f":"$D$13","v":"手当"},null,null,null,null,null,null,null,null,null,null,0]
[null,null,null,{"$f":"$D$14","v":"手当"},null,null,null,null,null,null,null,null,null,null,0]
[null,null,null,{"$f":"$D$15","v":"手当"},null,null,null,null,null,null,null,null,null,null,0]
[null,null,null,{"$f":"$D$16","v":"手当"},null,null,null,null,null,null,null,null,null,null,0]
[null,null,null,{"$f":"$D$17","v":"手当"},null,null,null,null,null,null,null,null,null,null,0]
[null,null,null,{"$f":"$D$18","v":"手当"},null,null,null,null,null,null,null,null,null,null,0]
[null,null,"合計",null,{"$f":"SUM(E80:E90)","v":0},{"$f":"SUM(F80:F90)","v":0},0,0,0,0,0,0,0,0,{"$f":"SUM(E91:N91)","v":0}]
[null,null,"時間当たり平均賃金",null,{"$f":"E91/E79","v":{"$error":"#DIV/0!"}},{"$f":"F91/F79","v":{"$error":"#DIV/0!"}},{"$error":"#DIV/0!"},{"$error":"#DIV/0!"},{"$error":"#DIV/0!"},{"$error":"#DIV/0!"},{"$error":"#DIV/0!"},{"$error":"#DIV/0!"},{"$error":"#DIV/0!"},{"$error":"#DIV/0!"}]
[]
[null,6,"賃金算定期間",null,"令和6年12月支給分（〇/〇～〇/〇）12月支給となる対象期間",null,null,null,null,null,null,null,null,null,"合計"]
[null,null,"No",null,51,52,53,54,55,56,57,58,59,60]
[null,null,"従業員氏名",null,null,null,null,null,null,null,null,null,null,null,{"$f":"COUNTIF(E96:N96,\"<>\")","v":0}]
[null,null,"１月の月平均所定労働時間（※）",null,null,null,null,null,null,null,null,null,null,null,{"$f":"SUM(E97:N97)","v":0}]
[null,null,"基本賃金（基本給）",null,null,null,null,null,null,null,null,null,null,null,{"$f":"SUM(E98:N98)","v":0}]
[null,null,"手\n\n当",{"$f":"$D$9","v":"手当"},null,null,null,null,null,null,null,null,null,null,{"$f":"SUM(E99:N99)","v":0}]
[null,null,null,{"$f":"$D$10","v":"手当"},null,null,null,null,null,null,null,null,null,null,0]
[null,null,null,{"$f":"$D$11","v":"手当"},null,null,null,null,null,null,null,null,null,null,0]
[null,null,null,{"$f":"$D$12","v":"手当"},null,null,null,null,null,null,null,null,null,null,0]
[null,null,null,{"$f":"$D$13","v":"手当"},null,null,null,null,null,null,null,null,null,null,0]
[null,null,null,{"$f":"$D$14","v":"手当"},null,null,null,null,null,null,null,null,null,null,0]
[null,null,null,{"$f":"$D$15","v":"手当"},null,null,null,null,null,null,null,null,null,null,0]
[null,null,null,{"$f":"$D$16","v":"手当"},null,null,null,null,null,null,null,null,null,null,0]
[null,null,null,{"$f":"$D$17","v":"手当"},null,null,null,null,null,null,null,null,null,null,0]
[null,null,null,{"$f":"$D$18","v":"手当"},null,null,null,null,null,null,null,null,null,null,0]
[null,null,"合計",null,{"$f":"SUM(E98:E108)","v":0},{"$f":"SUM(F98:F108)","v":0},0,0,0,0,0,0,0,0,{"$f":"SUM(E109:N109)","v":0}]
[null,null,"時間当たり平均賃金",null,{"$f":"E109/E97","v":{"$error":"#DIV/0!"}},{"$f":"F109/F97","v":{"$error":"#DIV/0!"}},{"$error":"#DIV/0!"},{"$error":"#DIV/0!"},{"$error":"#DIV/0!"},{"$error":"#DIV/0!"},{"$error":"#DIV/0!"},{"$error":"#DIV/0!"},{"$error":"#DIV/0!"},{"$error":"#DIV/0!"}]
[]
[null,7,"賃金算定期間",null,"令和6年12月支給分（〇/〇～〇/〇）12月支給となる対象期間",null,null,null,null,null,null,null,null,null,"合計"]
[null,null,"No",null,61,62,63,64,65,66,67,68,69,70]
[null,null,"従業員氏名",null,null,null,null,null,null,null,null,null,null,null,{"$f":"COUNTIF(E114:N114,\"<>\")","v":0}]
[null,null,"１月の月平均所定労働時間（※）",null,null,null,null,null,null,null,null,null,null,null,{"$f":"SUM(E115:N115)","v":0}]
[null,null,"基本賃金（基本給）",null,null,null,null,null,null,null,null,null,null,null,{"$f":"SUM(E116:N116)","v":0}]
[null,null,"手\n\n当",{"$f":"$D$9","v":"手当"},null,null,null,null,null,null,null,null,null,null,{"$f":"SUM(E117:N117)","v":0}]
[null,null,null,{"$f":"$D$10","v":"手当"},null,null,null,null,null,null,null,null,null,null,0]
[null,null,null,{"$f":"$D$11","v":"手当"},null,null,null,null,null,null,null,null,null,null,0]
[null,null,null,{"$f":"$D$12","v":"手当"},null,null,null,null,null,null,null,null,null,null,0]
[null,null,null,{"$f":"$D$13","v":"手当"},null,null,null,null,null,null,null,null,null,null,0]
[null,null,null,{"$f":"$D$14","v":"手当"},null,null,null,null,null,null,null,null,null,null,0]
[null,null,null,{"$f":"$D$15","v":"手当"},null,null,null,null,null,null,null,null,null,null,0]
[null,null,null,{"$f":"$D$16","v":"手当"},null,null,null,null,null,null,null,null,null,null,0]
[null,null,null,{"$f":"$D$17","v":"手当"},null,null,null,null,null,null,null,null,null,null,0]
[null,null,null,{"$f":"$D$18","v":"手当"},null,null,null,null,null,null,null,null,null,null,0]
[null,null,"合計",null,{"$f":"SUM(E116:E126)","v":0},{"$f":"SUM(F116:F126)","v":0},0,0,0,0,0,0,0,0,{"$f":"SUM(E127:N127)","v":0}]
[null,null,"時間当たり平均賃金",null,{"$f":"E127/E115","v":{"$error":"#DIV/0!"}},{"$f":"F127/F115","v":{"$error":"#DIV/0!"}},{"$error":"#DIV/0!"},{"$error":"#DIV/0!"},{"$error":"#DIV/0!"},{"$error":"#DIV/0!"},{"$error":"#DIV/0!"},{"$error":"#DIV/0!"},{"$error":"#DIV/0!"},{"$error":"#DIV/0!"}]
[]
[null,8,"賃金算定期間",null,"令和6年12月支給分（〇/〇～〇/〇）12月支給となる対象期間",null,null,null,null,null,null,null,null,null,"合計"]
[null,null,"No",null,71,72,73,74,75,76,77,78,79,80]
[null,null,"従業員氏名",null,null,null,null,null,null,null,null,null,null,null,{"$f":"COUNTIF(E132:N132,\"<>\")","v":0}]
[null,null,"１月の月平均所定労働時間（※）",null,null,null,null,null,null,null,null,null,null,null,{"$f":"SUM(E133:N133)","v":0}]
[null,null,"基本賃金（基本給）",null,null,null,null,null,null,null,null,null,null,null,{"$f":"SUM(E134:N134)","v":0}]
[null,null,"手\n\n当",{"$f":"$D$9","v":"手当"},null,null,null,null,null,null,null,null,null,null,{"$f":"SUM(E135:N135)","v":0}]
[null,null,null,{"$f":"$D$10","v":"手当"},null,null,null,null,null,null,null,null,null,null,0]
[null,null,null,{"$f":"$D$11","v":"手当"},null,null,null,null,null,null,null,null,null,null,0]
[null,null,null,{"$f":"$D$12","v":"手当"},null,null,null,null,null,null,null,null,null,null,0]
[null,null,null,{"$f":"$D$13","v":"手当"},null,null,null,null,null,null,null,null,null,null,0]
[null,null,null,{"$f":"$D$14","v":"手当"},null,null,null,null,null,null,null,null,null,null,0]
[null,null,null,{"$f":"$D$15","v":"手当"},null,null,null,null,null,null,null,null,null,null,0]
[null,null,null,{"$f":"$D$16","v":"手当"},null,null,null,null,null,null,null,null,null,null,0]
[null,null,null,{"$f":"$D$17","v":"手当"},null,null,null,null,null,null,null,null,null,null,0]
[null,null,null,{"$f":"$D$18","v":"手当"},null,null,null,null,null,null,null,null,null,null,0]
[null,null,"合計",null,{"$f":"SUM(E134:E144)","v":0},{"$f":"SUM(F134:F144)","v":0},0,0,0,0,0,0,0,0,{"$f":"SUM(E145:N145)","v":0}]
[null,null,"時間当たり平均賃金",null,{"$f":"E145/E133","v":{"$error":"#DIV/0!"}},{"$f":"F145/F133","v":{"$error":"#DIV/0!"}},{"$error":"#DIV/0!"},{"$error":"#DIV/0!"},{"$error":"#DIV/0!"},{"$error":"#DIV/0!"},{"$error":"#DIV/0!"},{"$error":"#DIV/0!"},{"$error":"#DIV/0!"},{"$error":"#DIV/0!"}]
[]
[null,9,"賃金算定期間",null,"令和6年12月支給分（〇/〇～〇/〇）12月支給となる対象期間",null,null,null,null,null,null,null,null,null,"合計"]
[null,null,"No",null,81,82,83,84,85,86,87,88,89,90]
[null,null,"従業員氏名",null,null,null,null,null,null,null,null,null,null,null,{"$f":"COUNTIF(E150:N150,\"<>\")","v":0}]
[null,null,"１月の月平均所定労働時間（※）",null,null,null,null,null,null,null,null,null,null,null,{"$f":"SUM(E151:N151)","v":0}]
[null,null,"基本賃金（基本給）",null,null,null,null,null,null,null,null,null,null,null,{"$f":"SUM(E152:N152)","v":0}]
[null,null,"手\n\n当",{"$f":"$D$9","v":"手当"},null,null,null,null,null,null,null,null,null,null,{"$f":"SUM(E153:N153)","v":0}]
[null,null,null,{"$f":"$D$10","v":"手当"},null,null,null,null,null,null,null,null,null,null,0]
[null,null,null,{"$f":"$D$11","v":"手当"},null,null,null,null,null,null,null,null,null,null,0]
[null,null,null,{"$f":"$D$12","v":"手当"},null,null,null,null,null,null,null,null,null,null,0]
[null,null,null,{"$f":"$D$13","v":"手当"},null,null,null,null,null,null,null,null,null,null,0]
[null,null,null,{"$f":"$D$14","v":"手当"},null,null,null,null,null,null,null,null,null,null,0]
[null,null,null,{"$f":"$D$15","v":"手当"},null,null,null,null,null,null,null,null,null,null,0]
[null,null,null,{"$f":"$D$16","v":"手当"},null,null,null,null,null,null,null,null,null,null,0]
[null,null,null,{"$f":"$D$17","v":"手当"},null,null,null,null,null,null,null,null,null,null,0]
[null,null,null,{"$f":"$D$18","v":"手当"},null,null,null,null,null,null,null,null,null,null,0]
[null,null,"合計",null,{"$f":"SUM(E152:E162)","v":0},{"$f":"SUM(F152:F162)","v":0},0,0,0,0,0,0,0,0,{"$f":"SUM(E163:N163)","v":0}]
[null,null,"時間当たり平均賃金",null,{"$f":"E163/E151","v":{"$error":"#DIV/0!"}},{"$f":"F163/F151","v":{"$error":"#DIV/0!"}},{"$error":"#DIV/0!"},{"$error":"#DIV/0!"},{"$error":"#DIV/0!"},{"$error":"#DIV/0!"},{"$error":"#DIV/0!"},{"$error":"#DIV/0!"},{"$error":"#DIV/0!"},{"$error":"#DIV/0!"}]
[]
[null,10,"賃金算定期間",null,"令和6年12月支給分（〇/〇～〇/〇）12月支給となる対象期間",null,null,null,null,null,null,null,null,null,"合計"]
[null,null,"No",null,91,92,93,94,95,96,97,98,99,100]
[null,null,"従業員氏名",null,null,null,null,null,null,null,null,null,null,null,{"$f":"COUNTIF(E168:N168,\"<>\")","v":0}]
[null,null,"１月の月平均所定労働時間（※）",null,null,null,null,null,null,null,null,null,null,null,{"$f":"SUM(E169:N169)","v":0}]
[null,null,"基本賃金（基本給）",null,null,null,null,null,null,null,null,null,null,null,{"$f":"SUM(E170:N170)","v":0}]
[null,null,"手\n\n当",{"$f":"$D$9","v":"手当"},null,null,null,null,null,null,null,null,null,null,{"$f":"SUM(E171:N171)","v":0}]
[null,null,null,{"$f":"$D$10","v":"手当"},null,null,null,null,null,null,null,null,null,null,0]
[null,null,null,{"$f":"$D$11","v":"手当"},null,null,null,null,null,null,null,null,null,null,0]
[null,null,null,{"$f":"$D$12","v":"手当"},null,null,null,null,null,null,null,null,null,null,0]
[null,null,null,{"$f":"$D$13","v":"手当"},null,null,null,null,null,null,null,null,null,null,0]
[null,null,null,{"$f":"$D$14","v":"手当"},null,null,null,null,null,null,null,null,null,null,0]
[null,null,null,{"$f":"$D$15","v":"手当"},null,null,null,null,null,null,null,null,null,null,0]
[null,null,null,{"$f":"$D$16","v":"手当"},null,null,null,null,null,null,null,null,null,null,0]
[null,null,null,{"$f":"$D$17","v":"手当"},null,null,null,null,null,null,null,null,null,null,0]
[null,null,null,{"$f":"$D$18","v":"手当"},null,null,null,null,null,null,null,null,null,null,0]
[null,null,"合計",null,{"$f":"SUM(E170:E180)","v":0},{"$f":"SUM(F170:F180)","v":0},0,0,0,0,0,0,0,0,{"$f":"SUM(E181:N181)","v":0}]
[null,null,"時間当たり平均賃金",null,{"$f":"E181/E169","v":{"$error":"#DIV/0!"}},{"$f":"F181/F169","v":{"$error":"#DIV/0!"}},{"$error":"#DIV/0!"},{"$error":"#DIV/0!"},{"$error":"#DIV/0!"},{"$error":"#DIV/0!"},{"$error":"#DIV/0!"},{"$error":"#DIV/0!"},{"$error":"#DIV/0!"},{"$error":"#DIV/0!"}]
[]
[null,11,"賃金算定期間",null,"令和6年12月支給分（〇/〇～〇/〇）12月支給となる対象期間",null,null,null,null,null,null,null,null,null,"合計"]
[null,null,"No",null,101,102,103,104,105,106,107,108,109,110]
[null,null,"従業員氏名",null,null,null,null,null,null,null,null,null,null,null,{"$f":"COUNTIF(E186:N186,\"<>\")","v":0}]
[null,null,"１月の月平均所定労働時間（※）",null,null,null,null,null,null,null,null,null,null,null,{"$f":"SUM(E187:N187)","v":0}]
[null,null,"基本賃金（基本給）",null,null,null,null,null,null,null,null,null,null,null,{"$f":"SUM(E188:N188)","v":0}]
[null,null,"手\n\n当",{"$f":"$D$9","v":"手当"},null,null,null,null,null,null,null,null,null,null,{"$f":"SUM(E189:N189)","v":0}]
[null,null,null,{"$f":"$D$10","v":"手当"},null,null,null,null,null,null,null,null,null,null,0]
[null,null,null,{"$f":"$D$11","v":"手当"},null,null,null,null,null,null,null,null,null,null,0]
[null,null,null,{"$f":"$D$12","v":"手当"},null,null,null,null,null,null,null,null,null,null,0]
[null,null,null,{"$f":"$D$13","v":"手当"},null,null,null,null,null,null,null,null,null,null,0]
[null,null,null,{"$f":"$D$14","v":"手当"},null,null,null,null,null,null,null,null,null,null,0]
[null,null,null,{"$f":"$D$15","v":"手当"},null,null,null,null,null,null,null,null,null,null,0]
[null,null,null,{"$f":"$D$16","v":"手当"},null,null,null,null,null,null,null,null,null,null,0]
[null,null,null,{"$f":"$D$17","v":"手当"},null,null,null,null,null,null,null,null,null,null,0]
[null,null,null,{"$f":"$D$18","v":"手当"},null,null,null,null,null,null,null,null,null,null,0]
[null,null,"合計",null,{"$f":"SUM(E188:E198)","v":0},{"$f":"SUM(F188:F198)","v":0},0,0,0,0,0,0,0,0,{"$f":"SUM(E199:N199)","v":0}]
[null,null,"時間当たり平均賃金",null,{"$f":"E199/E187","v":{"$error":"#DIV/0!"}},{"$f":"F199/F187","v":{"$error":"#DIV/0!"}},{"$error":"#DIV/0!"},{"$error":"#DIV/0!"},{"$error":"#DIV/0!"},{"$error":"#DIV/0!"},{"$error":"#DIV/0!"},{"$error":"#DIV/0!"},{"$error":"#DIV/0!"},{"$error":"#DIV/0!"}]
[]
[null,12,"賃金算定期間",null,"令和6年12月支給分（〇/〇～〇/〇）12月支給となる対象期間",null,null,null,null,null,null,null,null,null,"合計"]
[null,null,"No",null,111,112,113,114,115,116,117,118,119,120]
[null,null,"従業員氏名",null,null,null,null,null,null,null,null,null,null,null,{"$f":"COUNTIF(E204:N204,\"<>\")","v":0}]
[null,null,"１月の月平均所定労働時間（※）",null,null,null,null,null,null,null,null,null,null,null,{"$f":"SUM(E205:N205)","v":0}]
[null,null,"基本賃金（基本給）",null,null,null,null,null,null,null,null,null,null,null,{"$f":"SUM(E206:N206)","v":0}]
[null,null,"手\n\n当",{"$f":"$D$9","v":"手当"},null,null,null,null,null,null,null,null,null,null,{"$f":"SUM(E207:N207)","v":0}]
[null,null,null,{"$f":"$D$10","v":"手当"},null,null,null,null,null,null,null,null,null,null,0]
[null,null,null,{"$f":"$D$11","v":"手当"},null,null,null,null,null,null,null,null,null,null,0]
[null,null,null,{"$f":"$D$12","v":"手当"},null,null,null,null,null,null,null,null,null,null,0]
[null,null,null,{"$f":"$D$13","v":"手当"},null,null,null,null,null,null,null,null,null,null,0]
[null,null,null,{"$f":"$D$14","v":"手当"},null,null,null,null,null,null,null,null,null,null,0]
[null,null,null,{"$f":"$D$15","v":"手当"},null,null,null,null,null,null,null,null,null,null,0]
[null,null,null,{"$f":"$D$16","v":"手当"},null,null,null,null,null,null,null,null,null,null,0]
[null,null,null,{"$f":"$D$17","v":"手当"},null,null,null,null,null,null,null,null,null,null,0]
[null,null,null,{"$f":"$D$18","v":"手当"},null,null,null,null,null,null,null,null,null,null,0]
[null,null,"合計",null,{"$f":"SUM(E206:E216)","v":0},{"$f":"SUM(F206:F216)","v":0},0,0,0,0,0,0,0,0,{"$f":"SUM(E217:N217)","v":0}]
[null,null,"時間当たり平均賃金",null,{"$f":"E217/E205","v":{"$error":"#DIV/0!"}},{"$f":"F217/F205","v":{"$error":"#DIV/0!"}},{"$error":"#DIV/0!"},{"$error":"#DIV/0!"},{"$error":"#DIV/0!"},{"$error":"#DIV/0!"},{"$error":"#DIV/0!"},{"$error":"#DIV/0!"},{"$error":"#DIV/0!"},{"$error":"#DIV/0!"}]
[]
[null,13,"賃金算定期間",null,"令和6年12月支給分（〇/〇～〇/〇）12月支給となる対象期間",null,null,null,null,null,null,null,null,null,"合計"]
[null,null,"No",null,121,122,123,124,125,126,127,128,129,130]
[null,null,"従業員氏名",null,null,null,null,null,null,null,null,null,null,null,{"$f":"COUNTIF(E222:N222,\"<>\")","v":0}]
[null,null,"１月の月平均所定労働時間（※）",null,null,null,null,null,null,null,null,null,null,null,{"$f":"SUM(E223:N223)","v":0}]
[null,null,"基本賃金（基本給）",null,null,null,null,null,null,null,null,null,null,null,{"$f":"SUM(E224:N224)","v":0}]
[null,null,"手\n\n当",{"$f":"$D$9","v":"手当"},null,null,null,null,null,null,null,null,null,null,{"$f":"SUM(E225:N225)","v":0}]
[null,null,null,{"$f":"$D$10","v":"手当"},null,null,null,null,null,null,null,null,null,null,0]
[null,null,null,{"$f":"$D$11","v":"手当"},null,null,null,null,null,null,null,null,null,null,0]
[null,null,null,{"$f":"$D$12","v":"手当"},null,null,null,null,null,null,null,null,null,null,0]
[null,null,null,{"$f":"$D$13","v":"手当"},null,null,null,null,null,null,null,null,null,null,0]
[null,null,null,{"$f":"$D$14","v":"手当"},null,null,null,null,null,null,null,null,null,null,0]
[null,null,null,{"$f":"$D$15","v":"手当"},null,null,null,null,null,null,null,null,null,null,0]
[null,null,null,{"$f":"$D$16","v":"手当"},null,null,null,null,null,null,null,null,null,null,0]
[null,null,null,{"$f":"$D$17","v":"手当"},null,null,null,null,null,null,null,null,null,null,0]
[null,null,null,{"$f":"$D$18","v":"手当"},null,null,null,null,null,null,null,null,null,null,0]
[null,null,"合計",null,{"$f":"SUM(E224:E234)","v":0},{"$f":"SUM(F224:F234)","v":0},0,0,0,0,0,0,0,0,{"$f":"SUM(E235:N235)","v":0}]
[null,null,"時間当たり平均賃金",null,{"$f":"E235/E223","v":{"$error":"#DIV/0!"}},{"$f":"F235/F223","v":{"$error":"#DIV/0!"}},{"$error":"#DIV/0!"},{"$error":"#DIV/0!"},{"$error":"#DIV/0!"},{"$error":"#DIV/0!"},{"$error":"#DIV/0!"},{"$error":"#DIV/0!"},{"$error":"#DIV/0!"},{"$error":"#DIV/0!"}]
[]
[null,14,"賃金算定期間",null,"令和6年12月支給分（〇/〇～〇/〇）12月支給となる対象期間",null,null,null,null,null,null,null,null,null,"合計"]
[null,null,"No",null,131,132,133,134,135,136,137,138,139,140]
[null,null,"従業員氏名",null,null,null,null,null,null,null,null,null,null,null,{"$f":"COUNTIF(E240:N240,\"<>\")","v":0}]
[null,null,"１月の月平均所定労働時間（※）",null,null,null,null,null,null,null,null,null,null,null,{"$f":"SUM(E241:N241)","v":0}]
[null,null,"基本賃金（基本給）",null,null,null,null,null,null,null,null,null,null,null,{"$f":"SUM(E242:N242)","v":0}]
[null,null,"手\n\n当",{"$f":"$D$9","v":"手当"},null,null,null,null,null,null,null,null,null,null,{"$f":"SUM(E243:N243)","v":0}]
[null,null,null,{"$f":"$D$10","v":"手当"},null,null,null,null,null,null,null,null,null,null,0]
[null,null,null,{"$f":"$D$11","v":"手当"},null,null,null,null,null,null,null,null,null,null,0]
[null,null,null,{"$f":"$D$12","v":"手当"},null,null,null,null,null,null,null,null,null,null,0]
[null,null,null,{"$f":"$D$13","v":"手当"},null,null,null,null,null,null,null,null,null,null,0]
[null,null,null,{"$f":"$D$14","v":"手当"},null,null,null,null,null,null,null,null,null,null,0]
[null,null,null,{"$f":"$D$15","v":"手当"},null,null,null,null,null,null,null,null,null,null,0]
[null,null,null,{"$f":"$D$16","v":"手当"},null,null,null,null,null,null,null,null,null,null,0]
[null,null,null,{"$f":"$D$17","v":"手当"},null,null,null,null,null,null,null,null,null,null,0]
[null,null,null,{"$f":"$D$18","v":"手当"},null,null,null,null,null,null,null,null,null,null,0]
[null,null,"合計",null,{"$f":"SUM(E242:E252)","v":0},{"$f":"SUM(F242:F252)","v":0},0,0,0,0,0,0,0,0,{"$f":"SUM(E253:N253)","v":0}]
[null,null,"時間当たり平均賃金",null,{"$f":"E253/E241","v":{"$error":"#DIV/0!"}},{"$f":"F253/F241","v":{"$error":"#DIV/0!"}},{"$error":"#DIV/0!"},{"$error":"#DIV/0!"},{"$error":"#DIV/0!"},{"$error":"#DIV/0!"},{"$error":"#DIV/0!"},{"$error":"#DIV/0!"},{"$error":"#DIV/0!"},{"$error":"#DIV/0!"}]
[]
[null,15,"賃金算定期間",null,"令和6年12月支給分（〇/〇～〇/〇）12月支給となる対象期間",null,null,null,null,null,null,null,null,null,"合計"]
[null,null,"No",null,141,142,143,144,145,146,147,148,149,150]
[null,null,"従業員氏名",null,null,null,null,null,null,null,null,null,null,null,{"$f":"COUNTIF(E258:N258,\"<>\")","v":0}]
[null,null,"１月の月平均所定労働時間（※）",null,null,null,null,null,null,null,null,null,null,null,{"$f":"SUM(E259:N259)","v":0}]
[null,null,"基本賃金（基本給）",null,null,null,null,null,null,null,null,null,null,null,{"$f":"SUM(E260:N260)","v":0}]
[null,null,"手\n\n当",{"$f":"$D$9","v":"手当"},null,null,null,null,null,null,null,null,null,null,{"$f":"SUM(E261:N261)","v":0}]
[null,null,null,{"$f":"$D$10","v":"手当"},null,null,null,null,null,null,null,null,null,null,0]
[null,null,null,{"$f":"$D$11","v":"手当"},null,null,null,null,null,null,null,null,null,null,0]
[null,null,null,{"$f":"$D$12","v":"手当"},null,null,null,null,null,null,null,null,null,null,0]
[null,null,null,{"$f":"$D$13","v":"手当"},null,null,null,null,null,null,null,null,null,null,0]
[null,null,null,{"$f":"$D$14","v":"手当"},null,null,null,null,null,null,null,null,null,null,0]
[null,null,null,{"$f":"$D$15","v":"手当"},null,null,null,null,null,null,null,null,null,null,0]
[null,null,null,{"$f":"$D$16","v":"手当"},null,null,null,null,null,null,null,null,null,null,0]
[null,null,null,{"$f":"$D$17","v":"手当"},null,null,null,null,null,null,null,null,null,null,0]
[null,null,null,{"$f":"$D$18","v":"手当"},null,null,null,null,null,null,null,null,null,null,0]
[null,null,"合計",null,{"$f":"SUM(E260:E270)","v":0},{"$f":"SUM(F260:F270)","v":0},0,0,0,0,0,0,0,0,{"$f":"SUM(E271:N271)","v":0}]
[null,null,"時間当たり平均賃金",null,{"$f":"E271/E259","v":{"$error":"#DIV/0!"}},{"$f":"F271/F259","v":{"$error":"#DIV/0!"}},{"$error":"#DIV/0!"},{"$error":"#DIV/0!"},{"$error":"#DIV/0!"},{"$error":"#DIV/0!"},{"$error":"#DIV/0!"},{"$error":"#DIV/0!"},{"$error":"#DIV/0!"},{"$error":"#DIV/0!"}]
[]
[null,16,"賃金算定期間",null,"令和6年12月支給分（〇/〇～〇/〇）12月支給となる対象期間",null,null,null,null,null,null,null,null,null,"合計"]
[null,null,"No",null,151,152,153,154,155,156,157,158,159,160]
[null,null,"従業員氏名",null,null,null,null,null,null,null,null,null,null,null,{"$f":"COUNTIF(E276:N276,\"<>\")","v":0}]
[null,null,"１月の月平均所定労働時間（※）",null,null,null,null,null,null,null,null,null,null,null,{"$f":"SUM(E277:N277)","v":0}]
[null,null,"基本賃金（基本給）",null,null,null,null,null,null,null,null,null,null,null,{"$f":"SUM(E278:N278)","v":0}]
[null,null,"手\n\n当",{"$f":"$D$9","v":"手当"},null,null,null,null,null,null,null,null,null,null,{"$f":"SUM(E279:N279)","v":0}]
[null,null,null,{"$f":"$D$10","v":"手当"},null,null,null,null,null,null,null,null,null,null,0]
[null,null,null,{"$f":"$D$11","v":"手当"},null,null,null,null,null,null,null,null,null,null,0]
[null,null,null,{"$f":"$D$12","v":"手当"},null,null,null,null,null,null,null,null,null,null,0]
[null,null,null,{"$f":"$D$13","v":"手当"},null,null,null,null,null,null,null,null,null,null,0]
[null,null,null,{"$f":"$D$14","v":"手当"},null,null,null,null,null,null,null,null,null,null,0]
[null,null,null,{"$f":"$D$15","v":"手当"},null,null,null,null,null,null,null,null,null,null,0]
[null,null,null,{"$f":"$D$16","v":"手当"},null,null,null,null,null,null,null,null,null,null,0]
[null,null,null,{"$f":"$D$17","v":"手当"},null,null,null,null,null,null,null,null,null,null,0]
[null,null,null,{"$f":"$D$18","v":"手当"},null,null,null,null,null,null,null,null,null,null,0]
[null,null,"合計",null,{"$f":"SUM(E278:E288)","v":0},{"$f":"SUM(F278:F288)","v":0},0,0,0,0,0,0,0,0,{"$f":"SUM(E289:N289)","v":0}]
[null,null,"時間当たり平均賃金",null,{"$f":"E289/E277","v":{"$error":"#DIV/0!"}},{"$f":"F289/F277","v":{"$error":"#DIV/0!"}},{"$error":"#DIV/0!"},{"$error":"#DIV/0!"},{"$error":"#DIV/0!"},{"$error":"#DIV/0!"},{"$error":"#DIV/0!"},{"$error":"#DIV/0!"},{"$error":"#DIV/0!"},{"$error":"#DIV/0!"}]
[]
[null,17,"賃金算定期間",null,"令和6年12月支給分（〇/〇～〇/〇）12月支給となる対象期間",null,null,null,null,null,null,null,null,null,"合計"]
[null,null,"No",null,161,162,163,164,165,166,167,168,169,170]
[null,null,"従業員氏名",null,null,null,null,null,null,null,null,null,null,null,{"$f":"COUNTIF(E294:N294,\"<>\")","v":0}]
[null,null,"１月の月平均所定労働時間（※）",null,null,null,null,null,null,null,null,null,null,null,{"$f":"SUM(E295:N295)","v":0}]
[null,null,"基本賃金（基本給）",null,null,null,null,null,null,null,null,null,null,null,{"$f":"SUM(E296:N296)","v":0}]
[null,null,"手\n\n当",{"$f":"$D$9","v":"手当"},null,null,null,null,null,null,null,null,null,null,{"$f":"SUM(E297:N297)","v":0}]
[null,null,null,{"$f":"$D$10","v":"手当"},null,null,null,null,null,null,null,null,null,null,0]
[null,null,null,{"$f":"$D$11","v":"手当"},null,null,null,null,null,null,null,null,null,null,0]
[null,null,null,{"$f":"$D$12","v":"手当"},null,null,null,null,null,null,null,null,null,null,0]
[null,null,null,{"$f":"$D$13","v":"手当"},null,null,null,null,null,null,null,null,null,null,0]
[null,null,null,{"$f":"$D$14","v":"手当"},null,null,null,null,null,null,null,null,null,null,0]
[null,null,null,{"$f":"$D$15","v":"手当"},null,null,null,null,null,null,null,null,null,null,0]
[null,null,null,{"$f":"$D$16","v":"手当"},null,null,null,null,null,null,null,null,null,null,0]
[null,null,null,{"$f":"$D$17","v":"手当"},null,null,null,null,null,null,null,null,null,null,0]
[null,null,null,{"$f":"$D$18","v":"手当"},null,null,null,null,null,null,null,null,null,null,0]
[null,null,"合計",null,{"$f":"SUM(E296:E306)","v":0},{"$f":"SUM(F296:F306)","v":0},0,0,0,0,0,0,0,0,{"$f":"SUM(E307:N307)","v":0}]
[null,null,"時間当たり平均賃金",null,{"$f":"E307/E295","v":{"$error":"#DIV/0!"}},{"$f":"F307/F295","v":{"$error":"#DIV/0!"}},{"$error":"#DIV/0!"},{"$error":"#DIV/0!"},{"$error":"#DIV/0!"},{"$error":"#DIV/0!"},{"$error":"#DIV/0!"},{"$error":"#DIV/0!"},{"$error":"#DIV/0!"},{"$error":"#DIV/0!"}]
[]
[null,18,"賃金算定期間",null,"令和6年12月支給分（〇/〇～〇/〇）12月支給となる対象期間",null,null,null,null,null,null,null,null,null,"合計"]
[null,null,"No",null,171,172,173,174,175,176,177,178,179,180]
[null,null,"従業員氏名",null,null,null,null,null,null,null,null,null,null,null,{"$f":"COUNTIF(E312:N312,\"<>\")","v":0}]
[null,null,"１月の月平均所定労働時間（※）",null,null,null,null,null,null,null,null,null,null,null,{"$f":"SUM(E313:N313)","v":0}]
[null,null,"基本賃金（基本給）",null,null,null,null,null,null,null,null,null,null,null,{"$f":"SUM(E314:N314)","v":0}]
[null,null,"手\n\n当",{"$f":"$D$9","v":"手当"},null,null,null,null,null,null,null,null,null,null,{"$f":"SUM(E315:N315)","v":0}]
[null,null,null,{"$f":"$D$10","v":"手当"},null,null,null,null,null,null,null,null,null,null,0]
[null,null,null,{"$f":"$D$11","v":"手当"},null,null,null,null,null,null,null,null,null,null,0]
[null,null,null,{"$f":"$D$12","v":"手当"},null,null,null,null,null,null,null,null,null,null,0]
[null,null,null,{"$f":"$D$13","v":"手当"},null,null,null,null,null,null,null,null,null,null,0]
[null,null,null,{"$f":"$D$14","v":"手当"},null,null,null,null,null,null,null,null,null,null,0]
[null,null,null,{"$f":"$D$15","v":"手当"},null,null,null,null,null,null,null,null,null,null,0]
[null,null,null,{"$f":"$D$16","v":"手当"},null,null,null,null,null,null,null,null,null,null,0]
[null,null,null,{"$f":"$D$17","v":"手当"},null,null,null,null,null,null,null,null,null,null,0]
[null,null,null,{"$f":"$D$18","v":"手当"},null,null,null,null,null,null,null,null,null,null,0]
[null,null,"合計",null,{"$f":"SUM(E314:E324)","v":0},{"$f":"SUM(F314:F324)","v":0},0,0,0,0,0,0,0,0,{"$f":"SUM(E325:N325)","v":0}]
[null,null,"時間当たり平均賃金",null,{"$f":"E325/E313","v":{"$error":"#DIV/0!"}},{"$f":"F325/F313","v":{"$error":"#DIV/0!"}},{"$error":"#DIV/0!"},{"$error":"#DIV/0!"},{"$error":"#DIV/0!"},{"$error":"#DIV/0!"},{"$error":"#DIV/0!"},{"$error":"#DIV/0!"},{"$error":"#DIV/0!"},{"$error":"#DIV/0!"}]
[]
[null,19,"賃金算定期間",null,"令和6年12月支給分（〇/〇～〇/〇）12月支給となる対象期間",null,null,null,null,null,null,null,null,null,"合計"]
[null,null,"No",null,181,182,183,184,185,186,187,188,189,190]
[null,null,"従業員氏名",null,null,null,null,null,null,null,null,null,null,null,{"$f":"COUNTIF(E330:N330,\"<>\")","v":0}]
[null,null,"１月の月平均所定労働時間（※）",null,null,null,null,null,null,null,null,null,null,null,{"$f":"SUM(E331:N331)","v":0}]
[null,null,"基本賃金（基本給）",null,null,null,null,null,null,null,null,null,null,null,{"$f":"SUM(E332:N332)","v":0}]
[null,null,"手\n\n当",{"$f":"$D$9","v":"手当"},null,null,null,null,null,null,null,null,null,null,{"$f":"SUM(E333:N333)","v":0}]
[null,null,null,{"$f":"$D$10","v":"手当"},null,null,null,null,null,null,null,null,null,null,0]
[null,null,null,{"$f":"$D$11","v":"手当"},null,null,null,null,null,null,null,null,null,null,0]
[null,null,null,{"$f":"$D$12","v":"手当"},null,null,null,null,null,null,null,null,null,null,0]
[null,null,null,{"$f":"$D$13","v":"手当"},null,null,null,null,null,null,null,null,null,null,0]
[null,null,null,{"$f":"$D$14","v":"手当"},null,null,null,null,null,null,null,null,null,null,0]
[null,null,null,{"$f":"$D$15","v":"手当"},null,null,null,null,null,null,null,null,null,null,0]
[null,null,null,{"$f":"$D$16","v":"手当"},null,null,null,null,null,null,null,null,null,null,0]
[null,null,null,{"$f":"$D$17","v":"手当"},null,null,null,null,null,null,null,null,null,null,0]
[null,null,null,{"$f":"$D$18","v":"手当"},null,null,null,null,null,null,null,null,null,null,0]
[null,null,"合計",null,{"$f":"SUM(E332:E342)","v":0},{"$f":"SUM(F332:F342)","v":0},0,0,0,0,0,0,0,0,{"$f":"SUM(E343:N343)","v":0}]
[null,null,"時間当たり平均賃金",null,{"$f":"E343/E331","v":{"$error":"#DIV/0!"}},{"$f":"F343/F331","v":{"$error":"#DIV/0!"}},{"$error":"#DIV/0!"},{"$error":"#DIV/0!"},{"$error":"#DIV/0!"},{"$error":"#DIV/0!"},{"$error":"#DIV/0!"},{"$error":"#DIV/0!"},{"$error":"#DIV/0!"},{"$error":"#DIV/0!"}]
[]
[null,20,"賃金算定期間",null,"令和6年12月支給分（〇/〇～〇/〇）12月支給となる対象期間",null,null,null,null,null,null,null,null,null,"合計"]
[null,null,"No",null,191,192,193,194,195,196,197,198,199,200]
[null,null,"従業員氏名",null,null,null,null,null,null,null,null,null,null,null,{"$f":"COUNTIF(E348:N348,\"<>\")","v":0}]
[null,null,"１月の月平均所定労働時間（※）",null,null,null,null,null,null,null,null,null,null,null,{"$f":"SUM(E349:N349)","v":0}]
[null,null,"基本賃金（基本給）",null,null,null,null,null,null,null,null,null,null,null,{"$f":"SUM(E350:N350)","v":0}]
[null,null,"手\n\n当",{"$f":"$D$9","v":"手当"},null,null,null,null,null,null,null,null,null,null,{"$f":"SUM(E351:N351)","v":0}]
[null,null,null,{"$f":"$D$10","v":"手当"},null,null,null,null,null,null,null,null,null,null,0]
[null,null,null,{"$f":"$D$11","v":"手当"},null,null,null,null,null,null,null,null,null,null,0]
[null,null,null,{"$f":"$D$12","v":"手当"},null,null,null,null,null,null,null,null,null,null,0]
[null,null,null,{"$f":"$D$13","v":"手当"},null,null,null,null,null,null,null,null,null,null,0]
[null,null,null,{"$f":"$D$14","v":"手当"},null,null,null,null,null,null,null,null,null,null,0]
[null,null,null,{"$f":"$D$15","v":"手当"},null,null,null,null,null,null,null,null,null,null,0]
[null,null,null,{"$f":"$D$16","v":"手当"},null,null,null,null,null,null,null,null,null,null,0]
[null,null,null,{"$f":"$D$17","v":"手当"},null,null,null,null,null,null,null,null,null,null,0]
[null,null,null,{"$f":"$D$18","v":"手当"},null,null,null,null,null,null,null,null,null,null,0]
[null,null,"合計",null,{"$f":"SUM(E350:E360)","v":0},{"$f":"SUM(F350:F360)","v":0},0,0,0,0,0,0,0,0,{"$f":"SUM(E361:N361)","v":0}]
[null,null,"時間当たり平均賃金",null,{"$f":"E361/E349","v":{"$error":"#DIV/0!"}},{"$f":"F361/F349","v":{"$error":"#DIV/0!"}},{"$error":"#DIV/0!"},{"$error":"#DIV/0!"},{"$error":"#DIV/0!"},{"$error":"#DIV/0!"},{"$error":"#DIV/0!"},{"$error":"#DIV/0!"},{"$error":"#DIV/0!"},{"$error":"#DIV/0!"}]
[]
[null,21,"賃金算定期間",null,"令和6年12月支給分（〇/〇～〇/〇）12月支給となる対象期間",null,null,null,null,null,null,null,null,null,"合計"]
[null,null,"No",null,201,202,203,204,205,206,207,208,209,210]
[null,null,"従業員氏名",null,null,null,null,null,null,null,null,null,null,null,{"$f":"COUNTIF(E366:N366,\"<>\")","v":0}]
[null,null,"１月の月平均所定労働時間（※）",null,null,null,null,null,null,null,null,null,null,null,{"$f":"SUM(E367:N367)","v":0}]
[null,null,"基本賃金（基本給）",null,null,null,null,null,null,null,null,null,null,null,{"$f":"SUM(E368:N368)","v":0}]
[null,null,"手\n\n当",{"$f":"$D$9","v":"手当"},null,null,null,null,null,null,null,null,null,null,{"$f":"SUM(E369:N369)","v":0}]
[null,null,null,{"$f":"$D$10","v":"手当"},null,null,null,null,null,null,null,null,null,null,0]
[null,null,null,{"$f":"$D$11","v":"手当"},null,null,null,null,null,null,null,null,null,null,0]
[null,null,null,{"$f":"$D$12","v":"手当"},null,null,null,null,null,null,null,null,null,null,0]
[null,null,null,{"$f":"$D$13","v":"手当"},null,null,null,null,null,null,null,null,null,null,0]
[null,null,null,{"$f":"$D$14","v":"手当"},null,null,null,null,null,null,null,null,null,null,0]
[null,null,null,{"$f":"$D$15","v":"手当"},null,null,null,null,null,null,null,null,null,null,0]
[null,null,null,{"$f":"$D$16","v":"手当"},null,null,null,null,null,null,null,null,null,null,0]
[null,null,null,{"$f":"$D$17","v":"手当"},null,null,null,null,null,null,null,null,null,null,0]
[null,null,null,{"$f":"$D$18","v":"手当"},null,null,null,null,null,null,null,null,null,null,0]
[null,null,"合計",null,{"$f":"SUM(E368:E378)","v":0},{"$f":"SUM(F368:F378)","v":0},0,0,0,0,0,0,0,0,{"$f":"SUM(E379:N379)","v":0}]
[null,null,"時間当たり平均賃金",null,{"$f":"E379/E367","v":{"$error":"#DIV/0!"}},{"$f":"F379/F367","v":{"$error":"#DIV/0!"}},{"$error":"#DIV/0!"},{"$error":"#DIV/0!"},{"$error":"#DIV/0!"},{"$error":"#DIV/0!"},{"$error":"#DIV/0!"},{"$error":"#DIV/0!"},{"$error":"#DIV/0!"},{"$error":"#DIV/0!"}]
[]
[null,22,"賃金算定期間",null,"令和6年12月支給分（〇/〇～〇/〇）12月支給となる対象期間",null,null,null,null,null,null,null,null,null,"合計"]
[null,null,"No",null,211,212,213,214,215,216,217,218,219,220]
[null,null,"従業員氏名",null,null,null,null,null,null,null,null,null,null,null,{"$f":"COUNTIF(E384:N384,\"<>\")","v":0}]
[null,null,"１月の月平均所定労働時間（※）",null,null,null,null,null,null,null,null,null,null,null,{"$f":"SUM(E385:N385)","v":0}]
[null,null,"基本賃金（基本給）",null,null,null,null,null,null,null,null,null,null,null,{"$f":"SUM(E386:N386)","v":0}]
[null,null,"手\n\n当",{"$f":"$D$9","v":"手当"},null,null,null,null,null,null,null,null,null,null,{"$f":"SUM(E387:N387)","v":0}]
[null,null,null,{"$f":"$D$10","v":"手当"},null,null,null,null,null,null,null,null,null,null,0]
[null,null,null,{"$f":"$D$11","v":"手当"},null,null,null,null,null,null,null,null,null,null,0]
[null,null,null,{"$f":"$D$12","v":"手当"},null,null,null,null,null,null,null,null,null,null,0]
[null,null,null,{"$f":"$D$13","v":"手当"},null,null,null,null,null,null,null,null,null,null,0]
[null,null,null,{"$f":"$D$14","v":"手当"},null,null,null,null,null,null,null,null,null,null,0]
[null,null,null,{"$f":"$D$15","v":"手当"},null,null,null,null,null,null,null,null,null,null,0]
[null,null,null,{"$f":"$D$16","v":"手当"},null,null,null,null,null,null,null,null,null,null,0]
[null,null,null,{"$f":"$D$17","v":"手当"},null,null,null,null,null,null,null,null,null,null,0]
[null,null,null,{"$f":"$D$18","v":"手当"},null,null,null,null,null,null,null,null,null,null,0]
[null,null,"合計",null,{"$f":"SUM(E386:E396)","v":0},{"$f":"SUM(F386:F396)","v":0},0,0,0,0,0,0,0,0,{"$f":"SUM(E397:N397)","v":0}]
[null,null,"時間当たり平均賃金",null,{"$f":"E397/E385","v":{"$error":"#DIV/0!"}},{"$f":"F397/F385","v":{"$error":"#DIV/0!"}},{"$error":"#DIV/0!"},{"$error":"#DIV/0!"},{"$error":"#DIV/0!"},{"$error":"#DIV/0!"},{"$error":"#DIV/0!"},{"$error":"#DIV/0!"},{"$error":"#DIV/0!"},{"$error":"#DIV/0!"}]
[]
[null,23,"賃金算定期間",null,"令和6年12月支給分（〇/〇～〇/〇）12月支給となる対象期間",null,null,null,null,null,null,null,null,null,"合計"]
[null,null,"No",null,221,222,223,224,225,226,227,228,229,230]
[null,null,"従業員氏名",null,null,null,null,null,null,null,null,null,null,null,{"$f":"COUNTIF(E402:N402,\"<>\")","v":0}]
[null,null,"１月の月平均所定労働時間（※）",null,null,null,null,null,null,null,null,null,null,null,{"$f":"SUM(E403:N403)","v":0}]
[null,null,"基本賃金（基本給）",null,null,null,null,null,null,null,null,null,null,null,{"$f":"SUM(E404:N404)","v":0}]
[null,null,"手\n\n当",{"$f":"$D$9","v":"手当"},null,null,null,null,null,null,null,null,null,null,{"$f":"SUM(E405:N405)","v":0}]
[null,null,null,{"$f":"$D$10","v":"手当"},null,null,null,null,null,null,null,null,null,null,0]
[null,null,null,{"$f":"$D$11","v":"手当"},null,null,null,null,null,null,null,null,null,null,0]
[null,null,null,{"$f":"$D$12","v":"手当"},null,null,null,null,null,null,null,null,null,null,0]
[null,null,null,{"$f":"$D$13","v":"手当"},null,null,null,null,null,null,null,null,null,null,0]
[null,null,null,{"$f":"$D$14","v":"手当"},null,null,null,null,null,null,null,null,null,null,0]
[null,null,null,{"$f":"$D$15","v":"手当"},null,null,null,null,null,null,null,null,null,null,0]
[null,null,null,{"$f":"$D$16","v":"手当"},null,null,null,null,null,null,null,null,null,null,0]
[null,null,null,{"$f":"$D$17","v":"手当"},null,null,null,null,null,null,null,null,null,null,0]
[null,null,null,{"$f":"$D$18","v":"手当"},null,null,null,null,null,null,null,null,null,null,0]
[null,null,"合計",null,{"$f":"SUM(E404:E414)","v":0},{"$f":"SUM(F404:F414)","v":0},0,0,0,0,0,0,0,0,{"$f":"SUM(E415:N415)","v":0}]
[null,null,"時間当たり平均賃金",null,{"$f":"E415/E403","v":{"$error":"#DIV/0!"}},{"$f":"F415/F403","v":{"$error":"#DIV/0!"}},{"$error":"#DIV/0!"},{"$error":"#DIV/0!"},{"$error":"#DIV/0!"},{"$error":"#DIV/0!"},{"$error":"#DIV/0!"},{"$error":"#DIV/0!"},{"$error":"#DIV/0!"},{"$error":"#DIV/0!"}]
[]
[null,24,"賃金算定期間",null,"令和6年12月支給分（〇/〇～〇/〇）12月支給となる対象期間",null,null,null,null,null,null,null,null,null,"合計"]
[null,null,"No",null,231,232,233,234,235,236,237,238,239,240]
[null,null,"従業員氏名",null,null,null,null,null,null,null,null,null,null,null,{"$f":"COUNTIF(E420:N420,\"<>\")","v":0}]
[null,null,"１月の月平均所定労働時間（※）",null,null,null,null,null,null,null,null,null,null,null,{"$f":"SUM(E421:N421)","v":0}]
[null,null,"基本賃金（基本給）",null,null,null,null,null,null,null,null,null,null,null,{"$f":"SUM(E422:N422)","v":0}]
[null,null,"手\n\n当",{"$f":"$D$9","v":"手当"},null,null,null,null,null,null,null,null,null,null,{"$f":"SUM(E423:N423)","v":0}]
[null,null,null,{"$f":"$D$10","v":"手当"},null,null,null,null,null,null,null,null,null,null,0]
[null,null,null,{"$f":"$D$11","v":"手当"},null,null,null,null,null,null,null,null,null,null,0]
[null,null,null,{"$f":"$D$12","v":"手当"},null,null,null,null,null,null,null,null,null,null,0]
[null,null,null,{"$f":"$D$13","v":"手当"},null,null,null,null,null,null,null,null,null,null,0]
[null,null,null,{"$f":"$D$14","v":"手当"},null,null,null,null,null,null,null,null,null,null,0]
[null,null,null,{"$f":"$D$15","v":"手当"},null,null,null,null,null,null,null,null,null,null,0]
[null,null,null,{"$f":"$D$16","v":"手当"},null,null,null,null,null,null,null,null,null,null,0]
[null,null,null,{"$f":"$D$17","v":"手当"},null,null,null,null,null,null,null,null,null,null,0]
[null,null,null,{"$f":"$D$18","v":"手当"},null,null,null,null,null,null,null,null,null,null,0]
[null,null,"合計",null,{"$f":"SUM(E422:E432)","v":0},{"$f":"SUM(F422:F432)","v":0},0,0,0,0,0,0,0,0,{"$f":"SUM(E433:N433)","v":0}]
[null,null,"時間当たり平均賃金",null,{"$f":"E433/E421","v":{"$error":"#DIV/0!"}},{"$f":"F433/F421","v":{"$error":"#DIV/0!"}},{"$error":"#DIV/0!"},{"$error":"#DIV/0!"},{"$error":"#DIV/0!"},{"$error":"#DIV/0!"},{"$error":"#DIV/0!"},{"$error":"#DIV/0!"},{"$error":"#DIV/0!"},{"$error":"#DIV/0!"}]
[]
[null,25,"賃金算定期間",null,"令和6年12月支給分（〇/〇～〇/〇）12月支給となる対象期間",null,null,null,null,null,null,null,null,null,"合計"]
[null,null,"No",null,241,242,243,244,245,246,247,248,249,250]
[null,null,"従業員氏名",null,null,null,null,null,null,null,null,null,null,null,{"$f":"COUNTIF(E438:N438,\"<>\")","v":0}]
[null,null,"１月の月平均所定労働時間（※）",null,null,null,null,null,null,null,null,null,null,null,{"$f":"SUM(E439:N439)","v":0}]
[null,null,"基本賃金（基本給）",null,null,null,null,null,null,null,null,null,null,null,{"$f":"SUM(E440:N440)","v":0}]
[null,null,"手\n\n当",{"$f":"$D$9","v":"手当"},null,null,null,null,null,null,null,null,null,null,{"$f":"SUM(E441:N441)","v":0}]
[null,null,null,{"$f":"$D$10","v":"手当"},null,null,null,null,null,null,null,null,null,null,0]
[null,null,null,{"$f":"$D$11","v":"手当"},null,null,null,null,null,null,null,null,null,null,0]
[null,null,null,{"$f":"$D$12","v":"手当"},null,null,null,null,null,null,null,null,null,null,0]
[null,null,null,{"$f":"$D$13","v":"手当"},null,null,null,null,null,null,null,null,null,null,0]
[null,null,null,{"$f":"$D$14","v":"手当"},null,null,null,null,null,null,null,null,null,null,0]
[null,null,null,{"$f":"$D$15","v":"手当"},null,null,null,null,null,null,null,null,null,null,0]
[null,null,null,{"$f":"$D$16","v":"手当"},null,null,null,null,null,null,null,null,null,null,0]
[null,null,null,{"$f":"$D$17","v":"手当"},null,null,null,null,null,null,null,null,null,null,0]
[null,null,null,{"$f":"$D$18","v":"手当"},null,null,null,null,null,null,null,null,null,null,0]
[null,null,"合計",null,{"$f":"SUM(E440:E450)","v":0},{"$f":"SUM(F440:F450)","v":0},0,0,0,0,0,0,0,0,{"$f":"SUM(E451:N451)","v":0}]
[null,null,"時間当たり平均賃金",null,{"$f":"E451/E439","v":{"$error":"#DIV/0!"}},{"$f":"F451/F439","v":{"$error":"#DIV/0!"}},{"$error":"#DIV/0!"},{"$error":"#DIV/0!"},{"$error":"#DIV/0!"},{"$error":"#DIV/0!"},{"$error":"#DIV/0!"},{"$error":"#DIV/0!"},{"$error":"#DIV/0!"},{"$error":"#DIV/0!"}]
[]
[null,26,"賃金算定期間",null,"令和6年12月支給分（〇/〇～〇/〇）12月支給となる対象期間",null,null,null,null,null,null,null,null,null,"合計"]
[null,null,"No",null,251,252,253,254,255,256,257,258,259,260]
[null,null,"従業員氏名",null,null,null,null,null,null,null,null,null,null,null,{"$f":"COUNTIF(E456:N456,\"<>\")","v":0}]
[null,null,"１月の月平均所定労働時間（※）",null,null,null,null,null,null,null,null,null,null,null,{"$f":"SUM(E457:N457)","v":0}]
[null,null,"基本賃金（基本給）",null,null,null,null,null,null,null,null,null,null,null,{"$f":"SUM(E458:N458)","v":0}]
[null,null,"手\n\n当",{"$f":"$D$9","v":"手当"},null,null,null,null,null,null,null,null,null,null,{"$f":"SUM(E459:N459)","v":0}]
[null,null,null,{"$f":"$D$10","v":"手当"},null,null,null,null,null,null,null,null,null,null,0]
[null,null,null,{"$f":"$D$11","v":"手当"},null,null,null,null,null,null,null,null,null,null,0]
[null,null,null,{"$f":"$D$12","v":"手当"},null,null,null,null,null,null,null,null,null,null,0]
[null,null,null,{"$f":"$D$13","v":"手当"},null,null,null,null,null,null,null,null,null,null,0]
[null,null,null,{"$f":"$D$14","v":"手当"},null,null,null,null,null,null,null,null,null,null,0]
[null,null,null,{"$f":"$D$15","v":"手当"},null,null,null,null,null,null,null,null,null,null,0]
[null,null,null,{"$f":"$D$16","v":"手当"},null,null,null,null,null,null,null,null,null,null,0]
[null,null,null,{"$f":"$D$17","v":"手当"},null,null,null,null,null,null,null,null,null,null,0]
[null,null,null,{"$f":"$D$18","v":"手当"},null,null,null,null,null,null,null,null,null,null,0]
[null,null,"合計",null,{"$f":"SUM(E458:E468)","v":0},{"$f":"SUM(F458:F468)","v":0},0,0,0,0,0,0,0,0,{"$f":"SUM(E469:N469)","v":0}]
[null,null,"時間当たり平均賃金",null,{"$f":"E469/E457","v":{"$error":"#DIV/0!"}},{"$f":"F469/F457","v":{"$error":"#DIV/0!"}},{"$error":"#DIV/0!"},{"$error":"#DIV/0!"},{"$error":"#DIV/0!"},{"$error":"#DIV/0!"},{"$error":"#DIV/0!"},{"$error":"#DIV/0!"},{"$error":"#DIV/0!"},{"$error":"#DIV/0!"}]
[]
[null,27,"賃金算定期間",null,"令和6年12月支給分（〇/〇～〇/〇）12月支給となる対象期間",null,null,null,null,null,null,null,null,null,"合計"]
[null,null,"No",null,261,262,263,264,265,266,267,268,269,270]
[null,null,"従業員氏名",null,null,null,null,null,null,null,null,null,null,null,{"$f":"COUNTIF(E474:N474,\"<>\")","v":0}]
[null,null,"１月の月平均所定労働時間（※）",null,null,null,null,null,null,null,null,null,null,null,{"$f":"SUM(E475:N475)","v":0}]
[null,null,"基本賃金（基本給）",null,null,null,null,null,null,null,null,null,null,null,{"$f":"SUM(E476:N476)","v":0}]
[null,null,"手\n\n当",{"$f":"$D$9","v":"手当"},null,null,null,null,null,null,null,null,null,null,{"$f":"SUM(E477:N477)","v":0}]
[null,null,null,{"$f":"$D$10","v":"手当"},null,null,null,null,null,null,null,null,null,null,0]
[null,null,null,{"$f":"$D$11","v":"手当"},null,null,null,null,null,null,null,null,null,null,0]
[null,null,null,{"$f":"$D$12","v":"手当"},null,null,null,null,null,null,null,null,null,null,0]
[null,null,null,{"$f":"$D$13","v":"手当"},null,null,null,null,null,null,null,null,null,null,0]
[null,null,null,{"$f":"$D$14","v":"手当"},null,null,null,null,null,null,null,null,null,null,0]
[null,null,null,{"$f":"$D$15","v":"手当"},null,null,null,null,null,null,null,null,null,null,0]
[null,null,null,{"$f":"$D$16","v":"手当"},null,null,null,null,null,null,null,null,null,null,0]
[null,null,null,{"$f":"$D$17","v":"手当"},null,null,null,null,null,null,null,null,null,null,0]
[null,null,null,{"$f":"$D$18","v":"手当"},null,null,null,null,null,null,null,null,null,null,0]
[null,null,"合計",null,{"$f":"SUM(E476:E486)","v":0},{"$f":"SUM(F476:F486)","v":0},0,0,0,0,0,0,0,0,{"$f":"SUM(E487:N487)","v":0}]
[null,null,"時間当たり平均賃金",null,{"$f":"E487/E475","v":{"$error":"#DIV/0!"}},{"$f":"F487/F475","v":{"$error":"#DIV/0!"}},{"$error":"#DIV/0!"},{"$error":"#DIV/0!"},{"$error":"#DIV/0!"},{"$error":"#DIV/0!"},{"$error":"#DIV/0!"},{"$error":"#DIV/0!"},{"$error":"#DIV/0!"},{"$error":"#DIV/0!"}]
[]
[null,28,"賃金算定期間",null,"令和6年12月支給分（〇/〇～〇/〇）12月支給となる対象期間",null,null,null,null,null,null,null,null,null,"合計"]
[null,null,"No",null,271,272,273,274,275,276,277,278,279,280]
[null,null,"従業員氏名",null,null,null,null,null,null,null,null,null,null,null,{"$f":"COUNTIF(E492:N492,\"<>\")","v":0}]
[null,null,"１月の月平均所定労働時間（※）",null,null,null,null,null,null,null,null,null,null,null,{"$f":"SUM(E493:N493)","v":0}]
[null,null,"基本賃金（基本給）",null,null,null,null,null,null,null,null,null,null,null,{"$f":"SUM(E494:N494)","v":0}]
[null,null,"手\n\n当",{"$f":"$D$9","v":"手当"},null,null,null,null,null,null,null,null,null,null,{"$f":"SUM(E495:N495)","v":0}]
[null,null,null,{"$f":"$D$10","v":"手当"},null,null,null,null,null,null,null,null,null,null,0]
[null,null,null,{"$f":"$D$11","v":"手当"},null,null,null,null,null,null,null,null,null,null,0]
[null,null,null,{"$f":"$D$12","v":"手当"},null,null,null,null,null,null,null,null,null,null,0]
[null,null,null,{"$f":"$D$13","v":"手当"},null,null,null,null,null,null,null,null,null,null,0]
[null,null,null,{"$f":"$D$14","v":"手当"},null,null,null,null,null,null,null,null,null,null,0]
[null,null,null,{"$f":"$D$15","v":"手当"},null,null,null,null,null,null,null,null,null,null,0]
[null,null,null,{"$f":"$D$16","v":"手当"},null,null,null,null,null,null,null,null,null,null,0]
[null,null,null,{"$f":"$D$17","v":"手当"},null,null,null,null,null,null,null,null,null,null,0]
[null,null,null,{"$f":"$D$18","v":"手当"},null,null,null,null,null,null,null,null,null,null,0]
[null,null,"合計",null,{"$f":"SUM(E494:E504)","v":0},{"$f":"SUM(F494:F504)","v":0},0,0,0,0,0,0,0,0,{"$f":"SUM(E505:N505)","v":0}]
[null,null,"時間当たり平均賃金",null,{"$f":"E505/E493","v":{"$error":"#DIV/0!"}},{"$f":"F505/F493","v":{"$error":"#DIV/0!"}},{"$error":"#DIV/0!"},{"$error":"#DIV/0!"},{"$error":"#DIV/0!"},{"$error":"#DIV/0!"},{"$error":"#DIV/0!"},{"$error":"#DIV/0!"},{"$error":"#DIV/0!"},{"$error":"#DIV/0!"}]
[]
[null,29,"賃金算定期間",null,"令和6年12月支給分（〇/〇～〇/〇）12月支給となる対象期間",null,null,null,null,null,null,null,null,null,"合計"]
[null,null,"No",null,281,282,283,284,285,286,287,288,289,290]
[null,null,"従業員氏名",null,null,null,null,null,null,null,null,null,null,null,{"$f":"COUNTIF(E510:N510,\"<>\")","v":0}]
[null,null,"１月の月平均所定労働時間（※）",null,null,null,null,null,null,null,null,null,null,null,{"$f":"SUM(E511:N511)","v":0}]
[null,null,"基本賃金（基本給）",null,null,null,null,null,null,null,null,null,null,null,{"$f":"SUM(E512:N512)","v":0}]
[null,null,"手\n\n当",{"$f":"$D$9","v":"手当"},null,null,null,null,null,null,null,null,null,null,{"$f":"SUM(E513:N513)","v":0}]
[null,null,null,{"$f":"$D$10","v":"手当"},null,null,null,null,null,null,null,null,null,null,0]
[null,null,null,{"$f":"$D$11","v":"手当"},null,null,null,null,null,null,null,null,null,null,0]
[null,null,null,{"$f":"$D$12","v":"手当"},null,null,null,null,null,null,null,null,null,null,0]
[null,null,null,{"$f":"$D$13","v":"手当"},null,null,null,null,null,null,null,null,null,null,0]
[null,null,null,{"$f":"$D$14","v":"手当"},null,null,null,null,null,null,null,null,null,null,0]
[null,null,null,{"$f":"$D$15","v":"手当"},null,null,null,null,null,null,null,null,null,null,0]
[null,null,null,{"$f":"$D$16","v":"手当"},null,null,null,null,null,null,null,null,null,null,0]
[null,null,null,{"$f":"$D$17","v":"手当"},null,null,null,null,null,null,null,null,null,null,0]
[null,null,null,{"$f":"$D$18","v":"手当"},null,null,null,null,null,null,null,null,null,null,0]
[null,null,"合計",null,{"$f":"SUM(E512:E522)","v":0},{"$f":"SUM(F512:F522)","v":0},0,0,0,0,0,0,0,0,{"$f":"SUM(E523:N523)","v":0}]
[null,null,"時間当たり平均賃金",null,{"$f":"E523/E511","v":{"$error":"#DIV/0!"}},{"$f":"F523/F511","v":{"$error":"#DIV/0!"}},{"$error":"#DIV/0!"},{"$error":"#DIV/0!"},{"$error":"#DIV/0!"},{"$error":"#DIV/0!"},{"$error":"#DIV/0!"},{"$error":"#DIV/0!"},{"$error":"#DIV/0!"},{"$error":"#DIV/0!"}]
[]
[null,30,"賃金算定期間",null,"令和6年12月支給分（〇/〇～〇/〇）12月支給となる対象期間",null,null,null,null,null,null,null,null,null,"合計"]
[null,null,"No",null,291,292,293,294,295,296,297,298,299,300]
[null,null,"従業員氏名",null,null,null,null,null,null,null,null,null,null,null,{"$f":"COUNTIF(E528:N528,\"<>\")","v":0}]
[null,null,"１月の月平均所定労働時間（※）",null,null,null,null,null,null,null,null,null,null,null,{"$f":"SUM(E529:N529)","v":0}]
[null,null,"基本賃金（基本給）",null,null,null,null,null,null,null,null,null,null,null,{"$f":"SUM(E530:N530)","v":0}]
[null,null,"手\n\n当",{"$f":"$D$9","v":"手当"},null,null,null,null,null,null,null,null,null,null,{"$f":"SUM(E531:N531)","v":0}]
[null,null,null,{"$f":"$D$10","v":"手当"},null,null,null,null,null,null,null,null,null,null,0]
[null,null,null,{"$f":"$D$11","v":"手当"},null,null,null,null,null,null,null,null,null,null,0]
[null,null,null,{"$f":"$D$12","v":"手当"},null,null,null,null,null,null,null,null,null,null,0]
[null,null,null,{"$f":"$D$13","v":"手当"},null,null,null,null,null,null,null,null,null,null,0]
[null,null,null,{"$f":"$D$14","v":"手当"},null,null,null,null,null,null,null,null,null,null,0]
[null,null,null,{"$f":"$D$15","v":"手当"},null,null,null,null,null,null,null,null,null,null,0]
[null,null,null,{"$f":"$D$16","v":"手当"},null,null,null,null,null,null,null,null,null,null,0]
[null,null,null,{"$f":"$D$17","v":"手当"},null,null,null,null,null,null,null,null,null,null,0]
[null,null,null,{"$f":"$D$18","v":"手当"},null,null,null,null,null,null,null,null,null,null,0]
[null,null,"合計",null,{"$f":"SUM(E530:E540)","v":0},{"$f":"SUM(F530:F540)","v":0},0,0,0,0,0,0,0,0,{"$f":"SUM(E541:N541)","v":0}]
[null,null,"時間当たり平均賃金",null,{"$f":"E541/E529","v":{"$error":"#DIV/0!"}},{"$f":"F541/F529","v":{"$error":"#DIV/0!"}},{"$error":"#DIV/0!"},{"$error":"#DIV/0!"},{"$error":"#DIV/0!"},{"$error":"#DIV/0!"},{"$error":"#DIV/0!"},{"$error":"#DIV/0!"},{"$error":"#DIV/0!"},{"$error":"#DIV/0!"}]

{"sheet":"賃上げ後","index":2,"n_rows":542,"n_cols":15,"rows_kept":542,"cut":false,"hidden":false,"merged":[[3,1,19,1],[3,2,3,3],[3,4,3,13],[3,14,4,14],[4,2,4,3],[5,2,5,3],[6,2,6,3],[7,2,7,3],[8,2,17,2],[18,2,18,3],[43,2,43,3],[21,1,37,1],[21,2,21,3],[21,4,21,13],[22,2,22,3],[23,2,23,3],[24,2,24,3],[25,2,25,3],[26,2,35,2],[111,14,112,14],[112,2,112,3],[113,2,113,3],[114,2,114,3],[115,2,115,3],[91,2,91,3],[90,2,90,3],[57,14,58,14],[58,2,58,3],[59,2,59,3],[60,2,60,3],[61,2,61,3],[62,2,71,2],[93,14,94,14],[94,2,94,3],[95,2,95,3],[96,2,96,3],[97,2,97,3],[98,2,107,2],[57,2,57,3],[57,4,57,13],[72,2,72,3],[73,2,73,3],[39,14,40,14],[19,2,19,3],[21,14,22,14],[44,2,53,2],[54,2,54,3],[55,2,55,3],[75,1,91,1],[75,2,75,3],[75,4,75,13],[75,14,76,14],[76,2,76,3],[77,2,77,3],[78,2,78,3],[79,2,79,3],[80,2,89,2],[57,1,73,1],[36,2,36,3],[37,2,37,3],[39,1,55,1],[39,2,39,3],[39,4,39,13],[40,2,40,3],[41,2,41,3],[42,2,42,3],[129,1,145,1],[129,2,129,3],[129,4,129,13],[144,2,144,3],[145,2,145,3],[108,2,108,3],[109,2,109,3],[111,1,127,1],[111,2,111,3],[111,4,111,13],[93,1,109,1],[93,2,93,3],[93,4,93,13],[162,2,162,3],[129,14,130,14],[130,2,130,3],[131,2,131,3],[132,2,132,3],[133,2,133,3],[134,2,143,2],[116,2,125,2],[126,2,126,3],[127,2,127,3],[183,14,184,14],[184,2,184,3],[185,2,185,3],[186,2,186,3],[187,2,187,3],[163,2,163,3],[165,1,181,1],[165,2,165,3],[165,4,165,13],[165,14,166,14],[166,2,166,3],[167,2,167,3],[168,2,168,3],[169,2,169,3],[170,2,179,2],[147,1,163,1],[147,2,147,3],[147,4,147,13],[147,14,148,14],[148,2,148,3],[149,2,149,3],[150,2,150,3],[151,2,151,3],[152,2,161,2],[201,1,217,1],[201,2,201,3],[201,4,201,13],[216,2,216,3],[217,2,217,3],[180,2,180,3],[181,2,181,3],[183,1,199,1],[183,2,183,3],[183,4,183,13],[234,2,234,3],[201,14,202,14],[202,2,202,3],[203,2,203,3],[204,2,204,3],[205,2,205,3],[206,2,215,2],[188,2,197,2],[198,2,198,3],[199,2,199,3],[255,14,256,14],[256,2,256,3],[257,2,257,3],[258,2,258,3],[259,2,259,3],[235,2,235,3],[237,1,253,1],[237,2,237,3],[237,4,237,13],[237,14,238,14],[238,2,238,3],[239,2,239,3],[240,2,240,3],[241,2,241,3],[242,2,251,2],[219,1,235,1],[219,2,219,3],[219,4,219,13],[219,14,220,14],[220,2,220,3],[221,2,221,3],[222,2,222,3],[223,2,223,3],[224,2,233,2],[273,1,289,1],[273,2,273,3],[273,4,273,13],[288,2,288,3],[289,2,289,3],[252,2,252,3],[253,2,253,3],[255,1,271,1],[255,2,255,3],[255,4,255,13],[306,2,306,3],[273,14,274,14],[274,2,274,3],[275,2,275,3],[276,2,276,3],[277,2,277,3],[278,2,287,2],[260,2,269,2],[270,2,270,3],[271,2,271,3],[327,14,328,14],[328,2,328,3],[329,2,329,3],[330,2,330,3],[331,2,331,3],[307,2,307,3],[309,1,325,1],[309,2,309,3],[309,4,309,13],[309,14,310,14],[310,2,310,3],[311,2,311,3],[312,2,312,3],[313,2,313,3],[314,2,323,2],[291,1,307,1],[291,2,291,3],[291,4,291,13],[291,14,292,14],[292,2,292,3],[293,2,293,3],[294,2,294,3],[295,2,295,3],[296,2,305,2],[345,1,361,1],[345,2,345,3],[345,4,345,13],[360,2,360,3],[361,2,361,3],[324,2,324,3],[325,2,325,3],[327,1,343,1],[327,2,327,3],[327,4,327,13],[378,2,378,3],[345,14,346,14],[346,2,346,3],[347,2,347,3],[348,2,348,3],[349,2,349,3],[350,2,359,2],[332,2,341,2],[342,2,342,3],[343,2,343,3],[399,14,400,14],[400,2,400,3],[401,2,401,3],[402,2,402,3],[403,2,403,3],[379,2,379,3],[381,1,397,1],[381,2,381,3],[381,4,381,13],[381,14,382,14],[382,2,382,3],[383,2,383,3],[384,2,384,3],[385,2,385,3],[386,2,395,2],[363,1,379,1],[363,2,363,3],[363,4,363,13],[363,14,364,14],[364,2,364,3],[365,2,365,3],[366,2,366,3],[367,2,367,3],[368,2,377,2],[417,1,433,1],[417,2,417,3],[417,4,417,13],[432,2,432,3],[433,2,433,3],[396,2,396,3],[397,2,397,3],[399,1,415,1],[399,2,399,3],[399,4,399,13],[450,2,450,3],[417,14,418,14],[418,2,418,3],[419,2,419,3],[420,2,420,3],[421,2,421,3],[422,2,431,2],[404,2,413,2],[414,2,414,3],[415,2,415,3],[471,14,472,14],[472,2,472,3],[473,2,473,3],[474,2,474,3],[475,2,475,3],[451,2,451,3],[453,1,469,1],[453,2,453,3],[453,4,453,13],[453,14,454,14],[454,2,454,3],[455,2,455,3],[456,2,456,3],[457,2,457,3],[458,2,467,2],[435,1,451,1],[435,2,435,3],[435,4,435,13],[435,14,436,14],[436,2,436,3],[437,2,437,3],[438,2,438,3],[439,2,439,3],[440,2,449,2],[489,1,505,1],[489,2,489,3],[489,4,489,13],[504,2,504,3],[505,2,505,3],[468,2,468,3],[469,2,469,3],[471,1,487,1],[471,2,471,3],[471,4,471,13],[489,14,490,14],[490,2,490,3],[491,2,491,3],[492,2,492,3],[493,2,493,3],[494,2,503,2],[476,2,485,2],[486,2,486,3],[487,2,487,3],[540,2,540,3],[541,2,541,3],[523,2,523,3],[525,1,541,1],[525,2,525,3],[525,4,525,13],[525,14,526,14],[526,2,526,3],[527,2,527,3],[528,2,528,3],[529,2,529,3],[530,2,539,2],[507,1,523,1],[507,2,507,3],[507,4,507,13],[507,14,508,14],[508,2,508,3],[509,2,509,3],[510,2,510,3],[511,2,511,3],[512,2,521,2],[522,2,522,3]]}
[null,null,null,null,null,null,null,"ひと月の"]
[null,null,null,"総賃金",{"$f":"SUM(IF(MOD(ROW(O19:O541)-19,18)=0,O19:O541,0))","v":0},"総労働時間",{"$f":"SUM(IF(MOD(ROW(O7:O529)-7,18)=0,O7:O529,0))","v":0},"平均賃金",{"$f":"E2/G2","v":{"$error":"#DIV/0!"}},null,"平均賃金増加率",{"$f":"I2/'1号-⑥賃上げ前'!I2-1","v":{"$error":"#DIV/0!"}}]
[]
[null,1,"賃金算定期間",null,"令和８年○月支給分（〇/〇～〇/〇）※任意のひと月をご指定ください",null,null,null,null,null,null,null,null,null,"合計"]
[null,null,"No",null,1,2,3,4,5,6,7,8,9,10]
[null,null,"従業員氏名",null,null,null,null,null,null,null,null,null,null,null,{"$f":"10-COUNTIF(E6:N6,\"\")","v":0}]
[null,null,"１月の月平均所定労働時間（※）",null,null,null,null,null,null,null,null,null,null,null,{"$f":"SUM(E7:N7)","v":0}]
[null,null,"基本賃金（基本給）",null,null,null,null,null,null,null,null,null,null,null,{"$f":"SUM(E8:N8)","v":0}]
[null,null,"手\n\n当","手当",null,null,null,null,null,null,null,null,null,null,0]
[null,null,null,"手当",null,null,null,null,null,null,null,null,null,null,0]
[null,null,null,"手当",null,null,null,null,null,null,null,null,null,null,0]
[null,null,null,"手当",null,null,null,null,null,null,null,null,null,null,0]
[null,null,null,"手当",null,null,null,null,null,null,null,null,null,null,0]
[null,null,null,"手当",null,null,null,null,null,null,null,null,null,null,0]
[null,null,null,"手当",null,null,null,null,null,null,null,null,null,null,0]
[null,null,null,"手当",null,null,null,null,null,null,null,null,null,null,0]
[null,null,null,"手当",null,null,null,null,null,null,null,null,null,null,0]
[null,null,null,"手当",null,null,null,null,null,null,null,null,null,null,0]
[null,null,"合計",null,{"$f":"SUM(E8:E18)","v":0},{"$f":"SUM(F8:F18)","v":0},0,0,0,0,0,0,0,0,{"$f":"SUM(E19:N19)","v":0}]
[null,null,"時間当たり平均賃金",null,{"$f":"E19/E7","v":{"$error":"#DIV/0!"}},{"$f":"F19/F7","v":{"$error":"#DIV/0!"}},{"$error":"#DIV/0!"},{"$error":"#DIV/0!"},{"$error":"#DIV/0!"},{"$error":"#DIV/0!"},{"$error":"#DIV/0!"},{"$error":"#DIV/0!"},{"$error":"#DIV/0!"},{"$error":"#DIV/0!"}]
[]
[null,2,"賃金算定期間",null,{"$f":"$E$4","v":"令和８年○月支給分（〇/〇～〇/〇）※任意のひと月をご指定ください"},null,null,null,null,null,null,null,null,null,"合計"]
[null,null,"No",null,11,12,13,14,15,16,17,18,19,20]
[null,null,"従業員氏名",null,null,null,null,null,null,null,null,null,null,null,{"$f":"10-COUNTIF(E24:N24,\"\")","v":0}]
[null,null,"１月の月平均所定労働時間（※）",null,null,null,null,null,null,null,null,null,null,null,{"$f":"SUM(E25:N25)","v":0}]
[null,null,"基本賃金（基本給）",null,null,null,null,null,null,null,null,null,null,null,0]
[null,null,"手\n\n当","手当",null,null,null,null,null,null,null,null,null,null,0]
[null,null,null,"手当",null,null,null,null,null,null,null,null,null,null,0]
[null,null,null,"手当",null,null,null,null,null,null,null,null,null,null,0]
[null,null,null,"手当",null,null,null,null,null,null,null,null,null,null,0]
[null,null,null,"手当",null,null,null,null,null,null,null,null,null,null,0]
[null,null,null,"手当",null,null,null,null,null,null,null,null,null,null,0]
[null,null,null,"手当",null,null,null,null,null,null,null,null,null,null,0]
[null,null,null,"手当",null,null,null,null,null,null,null,null,null,null,0]
[null,null,null,"手当",null,null,null,null,null,null,null,null,null,null,0]
[null,null,null,"手当",null,null,null,null,null,null,null,null,null,null,0]
[null,null,"合計",null,{"$f":"SUM(E26:E36)","v":0},{"$f":"SUM(F26:F36)","v":0},0,0,0,0,0,0,0,0,{"$f":"SUM(E37:N37)","v":0}]
[null,null,"時間当たり平均賃金",null,{"$f":"E37/E25","v":{"$error":"#DIV/0!"}},{"$f":"F37/F25","v":{"$error":"#DIV/0!"}},{"$error":"#DIV/0!"},{"$error":"#DIV/0!"},{"$error":"#DIV/0!"},{"$error":"#DIV/0!"},{"$error":"#DIV/0!"},{"$error":"#DIV/0!"},{"$error":"#DIV/0!"},{"$error":"#DIV/0!"}]
[]
[null,3,"賃金算定期間",null,{"$f":"$E$4","v":"令和８年○月支給分（〇/〇～〇/〇）※任意のひと月をご指定ください"},null,null,null,null,null,null,null,null,null,"合計"]
[null,null,"No",null,21,22,23,24,25,26,27,28,29,30]
[null,null,"従業員氏名",null,null,null,null,null,null,null,null,null,null,null,{"$f":"10-COUNTIF(E42:N42,\"\")","v":0}]
[null,null,"１月の月平均所定労働時間（※）",null,null,null,null,null,null,null,null,null,null,null,{"$f":"SUM(E43:N43)","v":0}]
[null,null,"基本賃金（基本給）",null,null,null,null,null,null,null,null,null,null,null,0]
[null,null,"手\n\n当","手当",null,null,null,null,null,null,null,null,null,null,0]
[null,null,null,"手当",null,null,null,null,null,null,null,null,null,null,0]
[null,null,null,"手当",null,null,null,null,null,null,null,null,null,null,0]
[null,null,null,"手当",null,null,null,null,null,null,null,null,null,null,0]
[null,null,null,"手当",null,null,null,null,null,null,null,null,null,null,0]
[null,null,null,"手当",null,null,null,null,null,null,null,null,null,null,0]
[null,null,null,"手当",null,null,null,null,null,null,null,null,null,null,0]
[null,null,null,"手当",null,null,null,null,null,null,null,null,null,null,0]
[null,null,null,"手当",null,null,null,null,null,null,null,null,null,null,0]
[null,null,null,"手当",null,null,null,null,null,null,null,null,null,null,0]
[null,null,"合計",null,{"$f":"SUM(E44:E54)","v":0},{"$f":"SUM(F44:F54)","v":0},0,0,0,0,0,0,0,0,{"$f":"SUM(E55:N55)","v":0}]
[null,null,"時間当たり平均賃金",null,{"$f":"E55/E43","v":{"$error":"#DIV/0!"}},{"$f":"F55/F43","v":{"$error":"#DIV/0!"}},{"$error":"#DIV/0!"},{"$error":"#DIV/0!"},{"$error":"#DIV/0!"},{"$error":"#DIV/0!"},{"$error":"#DIV/0!"},{"$error":"#DIV/0!"},{"$error":"#DIV/0!"},{"$error":"#DIV/0!"}]
[]
[null,4,"賃金算定期間",null,{"$f":"$E$4","v":"令和８年○月支給分（〇/〇～〇/〇）※任意のひと月をご指定ください"},null,null,null,null,null,null,null,null,null,"合計"]
[null,null,"No",null,31,32,33,34,35,36,37,38,39,40]
[null,null,"従業員氏名",null,null,null,null,null,null,null,null,null,null,null,{"$f":"10-COUNTIF(E60:N60,\"\")","v":0}]
[null,null,"１月の月平均所定労働時間（※）",null,null,null,null,null,null,null,null,null,null,null,{"$f":"SUM(E61:N61)","v":0}]
[null,null,"基本賃金（基本給）",null,null,null,null,null,null,null,null,null,null,null,0]
[null,null,"手\n\n当","手当",null,null,null,null,null,null,null,null,null,null,0]
[null,null,null,"手当",null,null,null,null,null,null,null,null,null,null,0]
[null,null,null,"手当",null,null,null,null,null,null,null,null,null,null,0]
[null,null,null,"手当",null,null,null,null,null,null,null,null,null,null,0]
[null,null,null,"手当",null,null,null,null,null,null,null,null,null,null,0]
[null,null,null,"手当",null,null,null,null,null,null,null,null,null,null,0]
[null,null,null,"手当",null,null,null,null,null,null,null,null,null,null,0]
[null,null,null,"手当",null,null,null,null,null,null,null,null,null,null,0]
[null,null,null,"手当",null,null,null,null,null,null,null,null,null,null,0]
[null,null,null,"手当",null,null,null,null,null,null,null,null,null,null,0]
[null,null,"合計",null,{"$f":"SUM(E62:E72)","v":0},{"$f":"SUM(F62:F72)","v":0},0,0,0,0,0,0,0,0,{"$f":"SUM(E73:N73)","v":0}]
[null,null,"時間当たり平均賃金",null,{"$f":"E73/E61","v":{"$error":"#DIV/0!"}},{"$f":"F73/F61","v":{"$error":"#DIV/0!"}},{"$error":"#DIV/0!"},{"$error":"#DIV/0!"},{"$error":"#DIV/0!"},{"$error":"#DIV/0!"},{"$error":"#DIV/0!"},{"$error":"#DIV/0!"},{"$error":"#DIV/0!"},{"$error":"#DIV/0!"}]
[]
[null,5,"賃金算定期間",null,{"$f":"$E$4","v":"令和８年○月支給分（〇/〇～〇/〇）※任意のひと月をご指定ください"},null,null,null,null,null,null,null,null,null,"合計"]
[null,null,"No",null,41,42,43,44,45,46,47,48,49,50]
[null,null,"従業員氏名",null,null,null,null,null,null,null,null,null,null,null,{"$f":"10-COUNTIF(E78:N78,\"\")","v":0}]
[null,null,"１月の月平均所定労働時間（※）",null,null,null,null,null,null,null,null,null,null,null,{"$f":"SUM(E79:N79)","v":0}]
[null,null,"基本賃金（基本給）",null,null,null,null,null,null,null,null,null,null,null,0]
[null,null,"手\n\n当","手当",null,null,null,null,null,null,null,null,null,null,0]
[null,null,null,"手当",null,null,null,null,null,null,null,null,null,null,0]
[null,null,null,"手当",null,null,null,null,null,null,null,null,null,null,0]
[null,null,null,"手当",null,null,null,null,null,null,null,null,null,null,0]
[null,null,null,"手当",null,null,null,null,null,null,null,null,null,null,0]
[null,null,null,"手当",null,null,null,null,null,null,null,null,null,null,0]
[null,null,null,"手当",null,null,null,null,null,null,null,null,null,null,0]
[null,null,null,"手当",null,null,null,null,null,null,null,null,null,null,0]
[null,null,null,"手当",null,null,null,null,null,null,null,null,null,null,0]
[null,null,null,"手当",null,null,null,null,null,null,null,null,null,null,0]
[null,null,"合計",null,{"$f":"SUM(E80:E90)","v":0},{"$f":"SUM(F80:F90)","v":0},0,0,0,0,0,0,0,0,{"$f":"SUM(E91:N91)","v":0}]
[null,null,"時間当たり平均賃金",null,{"$f":"E91/E79","v":{"$error":"#DIV/0!"}},{"$f":"F91/F79","v":{"$error":"#DIV/0!"}},{"$error":"#DIV/0!"},{"$error":"#DIV/0!"},{"$error":"#DIV/0!"},{"$error":"#DIV/0!"},{"$error":"#DIV/0!"},{"$error":"#DIV/0!"},{"$error":"#DIV/0!"},{"$error":"#DIV/0!"}]
[]
[null,6,"賃金算定期間",null,{"$f":"$E$4","v":"令和８年○月支給分（〇/〇～〇/〇）※任意のひと月をご指定ください"},null,null,null,null,null,null,null,null,null,"合計"]
[null,null,"No",null,51,52,53,54,55,56,57,58,59,60]
[null,null,"従業員氏名",null,null,null,null,null,null,null,null,null,null,null,{"$f":"10-COUNTIF(E96:N96,\"\")","v":0}]
[null,null,"１月の月平均所定労働時間（※）",null,null,null,null,null,null,null,null,null,null,null,{"$f":"SUM(E97:N97)","v":0}]
[null,null,"基本賃金（基本給）",null,null,null,null,null,null,null,null,null,null,null,0]
[null,null,"手\n\n当","手当",null,null,null,null,null,null,null,null,null,null,0]
[null,null,null,"手当",null,null,null,null,null,null,null,null,null,null,0]
[null,null,null,"手当",null,null,null,null,null,null,null,null,null,null,0]
[null,null,null,"手当",null,null,null,null,null,null,null,null,null,null,0]
[null,null,null,"手当",null,null,null,null,null,null,null,null,null,null,0]
[null,null,null,"手当",null,null,null,null,null,null,null,null,null,null,0]
[null,null,null,"手当",null,null,null,null,null,null,null,null,null,null,0]
[null,null,null,"手当",null,null,null,null,null,null,null,null,null,null,0]
[null,null,null,"手当",null,null,null,null,null,null,null,null,null,null,0]
[null,null,null,"手当",null,null,null,null,null,null,null,null,null,null,0]
[null,null,"合計",null,{"$f":"SUM(E98:E108)","v":0},{"$f":"SUM(F98:F108)","v":0},0,0,0,0,0,0,0,0,{"$f":"SUM(E109:N109)","v":0}]
[null,null,"時間当たり平均賃金",null,{"$f":"E109/E97","v":{"$error":"#DIV/0!"}},{"$f":"F109/F97","v":{"$error":"#DIV/0!"}},{"$error":"#DIV/0!"},{"$error":"#DIV/0!"},{"$error":"#DIV/0!"},{"$error":"#DIV/0!"},{"$error":"#DIV/0!"},{"$error":"#DIV/0!"},{"$error":"#DIV/0!"},{"$error":"#DIV/0!"}]
[]
[null,7,"賃金算定期間",null,{"$f":"$E$4","v":"令和８年○月支給分（〇/〇～〇/〇）※任意のひと月をご指定ください"},null,null,null,null,null,null,null,null,null,"合計"]
[null,null,"No",null,61,62,63,64,65,66,67,68,69,70]
[null,null,"従業員氏名",null,null,null,null,null,null,null,null,null,null,null,{"$f":"10-COUNTIF(E114:N114,\"\")","v":0}]
[null,null,"１月の月平均所定労働時間（※）",null,null,null,null,null,null,null,null,null,null,null,{"$f":"SUM(E115:N115)","v":0}]
[null,null,"基本賃金（基本給）",null,null,null,null,null,null,null,null,null,null,null,0]
[null,null,"手\n\n当","手当",null,null,null,null,null,null,null,null,null,null,0]
[null,null,null,"手当",null,null,null,null,null,null,null,null,null,null,0]
[null,null,null,"手当",null,null,null,null,null,null,null,null,null,null,0]
[null,null,null,"手当",null,null,null,null,null,null,null,null,null,null,0]
[null,null,null,"手当",null,null,null,null,null,null,null,null,null,null,0]
[null,null,null,"手当",null,null,null,null,null,null,null,null,null,null,0]
[null,null,null,"手当",null,null,null,null,null,null,null,null,null,null,0]
[null,null,null,"手当",null,null,null,null,null,null,null,null,null,null,0]
[null,null,null,"手当",null,null,null,null,null,null,null,null,null,null,0]
[null,null,null,"手当",null,null,null,null,null,null,null,null,null,null,0]
[null,null,"合計",null,{"$f":"SUM(E116:E126)","v":0},{"$f":"SUM(F116:F126)","v":0},0,0,0,0,0,0,0,0,{"$f":"SUM(E127:N127)","v":0}]
[null,null,"時間当たり平均賃金",null,{"$f":"E127/E115","v":{"$error":"#DIV/0!"}},{"$f":"F127/F115","v":{"$error":"#DIV/0!"}},{"$error":"#DIV/0!"},{"$error":"#DIV/0!"},{"$error":"#DIV/0!"},{"$error":"#DIV/0!"},{"$error":"#DIV/0!"},{"$error":"#DIV/0!"},{"$error":"#DIV/0!"},{"$error":"#DIV/0!"}]
[]
[null,8,"賃金算定期間",null,{"$f":"$E$4","v":"令和８年○月支給分（〇/〇～〇/〇）※任意のひと月をご指定ください"},null,null,null,null,null,null,null,null,null,"合計"]
[null,null,"No",null,71,72,73,74,75,76,77,78,79,80]
[null,null,"従業員氏名",null,null,null,null,null,null,null,null,null,null,null,{"$f":"10-COUNTIF(E132:N132,\"\")","v":0}]
[null,null,"１月の月平均所定労働時間（※）",null,null,null,null,null,null,null,null,null,null,null,{"$f":"SUM(E133:N133)","v":0}]
[null,null,"基本賃金（基本給）",null,null,null,null,null,null,null,null,null,null,null,0]
[null,null,"手\n\n当","手当",null,null,null,null,null,null,null,null,null,null,0]
[null,null,null,"手当",null,null,null,null,null,null,null,null,null,null,0]
[null,null,null,"手当",null,null,null,null,null,null,null,null,null,null,0]
[null,null,null,"手当",null,null,null,null,null,null,null,null,null,null,0]
[null,null,null,"手当",null,null,null,null,null,null,null,null,null,null,0]
[null,null,null,"手当",null,null,null,null,null,null,null,null,null,null,0]
[null,null,null,"手当",null,null,null,null,null,null,null,null,null,null,0]
[null,null,null,"手当",null,null,null,null,null,null,null,null,null,null,0]
[null,null,null,"手当",null,null,null,null,null,null,null,null,null,null,0]
[null,null,null,"手当",null,null,null,null,null,null,null,null,null,null,0]
[null,null,"合計",null,{"$f":"SUM(E134:E144)","v":0},{"$f":"SUM(F134:F144)","v":0},0,0,0,0,0,0,0,0,{"$f":"SUM(E145:N145)","v":0}]
[null,null,"時間当たり平均賃金",null,{"$f":"E145/E133","v":{"$error":"#DIV/0!"}},{"$f":"F145/F133","v":{"$error":"#DIV/0!"}},{"$error":"#DIV/0!"},{"$error":"#DIV/0!"},{"$error":"#DIV/0!"},{"$error":"#DIV/0!"},{"$error":"#DIV/0!"},{"$error":"#DIV/0!"},{"$error":"#DIV/0!"},{"$error":"#DIV/0!"}]
[]
[null,9,"賃金算定期間",null,{"$f":"$E$4","v":"令和８年○月支給分（〇/〇～〇/〇）※任意のひと月をご指定ください"},null,null,null,null,null,null,null,null,null,"合計"]
[null,null,"No",null,81,82,83,84,85,86,87,88,89,90]
[null,null,"従業員氏名",null,null,null,null,null,null,null,null,null,null,null,{"$f":"10-COUNTIF(E150:N150,\"\")","v":0}]
[null,null,"１月の月平均所定労働時間（※）",null,null,null,null,null,null,null,null,null,null,null,{"$f":"SUM(E151:N151)","v":0}]
[null,null,"基本賃金（基本給）",null,null,null,null,null,null,null,null,null,null,null,0]
[null,null,"手\n\n当","手当",null,null,null,null,null,null,null,null,null,null,0]
[null,null,null,"手当",null,null,null,null,null,null,null,null,null,null,0]
[null,null,null,"手当",null,null,null,null,null,null,null,null,null,null,0]
[null,null,null,"手当",null,null,null,null,null,null,null,null,null,null,0]
[null,null,null,"手当",null,null,null,null,null,null,null,null,null,null,0]
[null,null,null,"手当",null,null,null,null,null,null,null,null,null,null,0]
[null,null,null,"手当",null,null,null,null,null,null,null,null,null,null,0]
[null,null,null,"手当",null,null,null,null,null,null,null,null,null,null,0]
[null,null,null,"手当",null,null,null,null,null,null,null,null,null,null,0]
[null,null,null,"手当",null,null,null,null,null,null,null,null,null,null,0]
[null,null,"合計",null,{"$f":"SUM(E152:E162)","v":0},{"$f":"SUM(F152:F162)","v":0},0,0,0,0,0,0,0,0,{"$f":"SUM(E163:N163)","v":0}]
[null,null,"時間当たり平均賃金",null,{"$f":"E163/E151","v":{"$error":"#DIV/0!"}},{"$f":"F163/F151","v":{"$error":"#DIV/0!"}},{"$error":"#DIV/0!"},{"$error":"#DIV/0!"},{"$error":"#DIV/0!"},{"$error":"#DIV/0!"},{"$error":"#DIV/0!"},{"$error":"#DIV/0!"},{"$error":"#DIV/0!"},{"$error":"#DIV/0!"}]
[]
[null,10,"賃金算定期間",null,{"$f":"$E$4","v":"令和８年○月支給分（〇/〇～〇/〇）※任意のひと月をご指定ください"},null,null,null,null,null,null,null,null,null,"合計"]
[null,null,"No",null,91,92,93,94,95,96,97,98,99,100]
[null,null,"従業員氏名",null,null,null,null,null,null,null,null,null,null,null,{"$f":"10-COUNTIF(E168:N168,\"\")","v":0}]
[null,null,"１月の月平均所定労働時間（※）",null,null,null,null,null,null,null,null,null,null,null,{"$f":"SUM(E169:N169)","v":0}]
[null,null,"基本賃金（基本給）",null,null,null,null,null,null,null,null,null,null,null,0]
[null,null,"手\n\n当","手当",null,null,null,null,null,null,null,null,null,null,0]
[null,null,null,"手当",null,null,null,null,null,null,null,null,null,null,0]
[null,null,null,"手当",null,null,null,null,null,null,null,null,null,null,0]
[null,null,null,"手当",null,null,null,null,null,null,null,null,null,null,0]
[null,null,null,"手当",null,null,null,null,null,null,null,null,null,null,0]
[null,null,null,"手当",null,null,null,null,null,null,null,null,null,null,0]
[null,null,null,"手当",null,null,null,null,null,null,null,null,null,null,0]
[null,null,null,"手当",null,null,null,null,null,null,null,null,null,null,0]
[null,null,null,"手当",null,null,null,null,null,null,null,null,null,null,0]
[null,null,null,"手当",null,null,null,null,null,null,null,null,null,null,0]
[null,null,"合計",null,{"$f":"SUM(E170:E180)","v":0},{"$f":"SUM(F170:F180)","v":0},0,0,0,0,0,0,0,0,{"$f":"SUM(E181:N181)","v":0}]
[null,null,"時間当たり平均賃金",null,{"$f":"E181/E169","v":{"$error":"#DIV/0!"}},{"$f":"F181/F169","v":{"$error":"#DIV/0!"}},{"$error":"#DIV/0!"},{"$error":"#DIV/0!"},{"$error":"#DIV/0!"},{"$error":"#DIV/0!"},{"$error":"#DIV/0!"},{"$error":"#DIV/0!"},{"$error":"#DIV/0!"},{"$error":"#DIV/0!"}]
[]
[null,11,"賃金算定期間",null,{"$f":"$E$4","v":"令和８年○月支給分（〇/〇～〇/〇）※任意のひと月をご指定ください"},null,null,null,null,null,null,null,null,null,"合計"]
[null,null,"No",null,101,102,103,104,105,106,107,108,109,110]
[null,null,"従業員氏名",null,null,null,null,null,null,null,null,null,null,null,{"$f":"10-COUNTIF(E186:N186,\"\")","v":0}]
[null,null,"１月の月平均所定労働時間（※）",null,null,null,null,null,null,null,null,null,null,null,{"$f":"SUM(E187:N187)","v":0}]
[null,null,"基本賃金（基本給）",null,null,null,null,null,null,null,null,null,null,null,0]
[null,null,"手\n\n当","手当",null,null,null,null,null,null,null,null,null,null,0]
[null,null,null,"手当",null,null,null,null,null,null,null,null,null,null,0]
[null,null,null,"手当",null,null,null,null,null,null,null,null,null,null,0]
[null,null,null,"手当",null,null,null,null,null,null,null,null,null,null,0]
[null,null,null,"手当",null,null,null,null,null,null,null,null,null,null,0]
[null,null,null,"手当",null,null,null,null,null,null,null,null,null,null,0]
[null,null,null,"手当",null,null,null,null,null,null,null,null,null,null,0]
[null,null,null,"手当",null,null,null,null,null,null,null,null,null,null,0]
[null,null,null,"手当",null,null,null,null,null,null,null,null,null,null,0]
[null,null,null,"手当",null,null,null,null,null,null,null,null,null,null,0]
[null,null,"合計",null,{"$f":"SUM(E188:E198)","v":0},{"$f":"SUM(F188:F198)","v":0},0,0,0,0,0,0,0,0,{"$f":"SUM(E199:N199)","v":0}]
[null,null,"時間当たり平均賃金",null,{"$f":"E199/E187","v":{"$error":"#DIV/0!"}},{"$f":"F199/F187","v":{"$error":"#DIV/0!"}},{"$error":"#DIV/0!"},{"$error":"#DIV/0!"},{"$error":"#DIV/0!"},{"$error":"#DIV/0!"},{"$error":"#DIV/0!"},{"$error":"#DIV/0!"},{"$error":"#DIV/0!"},{"$error":"#DIV/0!"}]
[]
[null,12,"賃金算定期間",null,{"$f":"$E$4","v":"令和８年○月支給分（〇/〇～〇/〇）※任意のひと月をご指定ください"},null,null,null,null,null,null,null,null,null,"合計"]
[null,null,"No",null,111,112,113,114,115,116,117,118,119,120]
[null,null,"従業員氏名",null,null,null,null,null,null,null,null,null,null,null,{"$f":"10-COUNTIF(E204:N204,\"\")","v":0}]
[null,null,"１月の月平均所定労働時間（※）",null,null,null,null,null,null,null,null,null,null,null,{"$f":"SUM(E205:N205)","v":0}]
[null,null,"基本賃金（基本給）",null,null,null,null,null,null,null,null,null,null,null,0]
[null,null,"手\n\n当","手当",null,null,null,null,null,null,null,null,null,null,0]
[null,null,null,"手当",null,null,null,null,null,null,null,null,null,null,0]
[null,null,null,"手当",null,null,null,null,null,null,null,null,null,null,0]
[null,null,null,"手当",null,null,null,null,null,null,null,null,null,null,0]
[null,null,null,"手当",null,null,null,null,null,null,null,null,null,null,0]
[null,null,null,"手当",null,null,null,null,null,null,null,null,null,null,0]
[null,null,null,"手当",null,null,null,null,null,null,null,null,null,null,0]
[null,null,null,"手当",null,null,null,null,null,null,null,null,null,null,0]
[null,null,null,"手当",null,null,null,null,null,null,null,null,null,null,0]
[null,null,null,"手当",null,null,null,null,null,null,null,null,null,null,0]
[null,null,"合計",null,{"$f":"SUM(E206:E216)","v":0},{"$f":"SUM(F206:F216)","v":0},0,0,0,0,0,0,0,0,{"$f":"SUM(E217:N217)","v":0}]
[null,null,"時間当たり平均賃金",null,{"$f":"E217/E205","v":{"$error":"#DIV/0!"}},{"$f":"F217/F205","v":{"$error":"#DIV/0!"}},{"$error":"#DIV/0!"},{"$error":"#DIV/0!"},{"$error":"#DIV/0!"},{"$error":"#DIV/0!"},{"$error":"#DIV/0!"},{"$error":"#DIV/0!"},{"$error":"#DIV/0!"},{"$error":"#DIV/0!"}]
[]
[null,13,"賃金算定期間",null,{"$f":"$E$4","v":"令和８年○月支給分（〇/〇～〇/〇）※任意のひと月をご指定ください"},null,null,null,null,null,null,null,null,null,"合計"]
[null,null,"No",null,121,122,123,124,125,126,127,128,129,130]
[null,null,"従業員氏名",null,null,null,null,null,null,null,null,null,null,null,{"$f":"10-COUNTIF(E222:N222,\"\")","v":0}]
[null,null,"１月の月平均所定労働時間（※）",null,null,null,null,null,null,null,null,null,null,null,{"$f":"SUM(E223:N223)","v":0}]
[null,null,"基本賃金（基本給）",null,null,null,null,null,null,null,null,null,null,null,0]
[null,null,"手\n\n当","手当",null,null,null,null,null,null,null,null,null,null,0]
[null,null,null,"手当",null,null,null,null,null,null,null,null,null,null,0]
[null,null,null,"手当",null,null,null,null,null,null,null,null,null,null,0]
[null,null,null,"手当",null,null,null,null,null,null,null,null,null,null,0]
[null,null,null,"手当",null,null,null,null,null,null,null,null,null,null,0]
[null,null,null,"手当",null,null,null,null,null,null,null,null,null,null,0]
[null,null,null,"手当",null,null,null,null,null,null,null,null,null,null,0]
[null,null,null,"手当",null,null,null,null,null,null,null,null,null,null,0]
[null,null,null,"手当",null,null,null,null,null,null,null,null,null,null,0]
[null,null,null,"手当",null,null,null,null,null,null,null,null,null,null,0]
[null,null,"合計",null,{"$f":"SUM(E224:E234)","v":0},{"$f":"SUM(F224:F234)","v":0},0,0,0,0,0,0,0,0,{"$f":"SUM(E235:N235)","v":0}]
[null,null,"時間当たり平均賃金",null,{"$f":"E235/E223","v":{"$error":"#DIV/0!"}},{"$f":"F235/F223","v":{"$error":"#DIV/0!"}},{"$error":"#DIV/0!"},{"$error":"#DIV/0!"},{"$error":"#DIV/0!"},{"$error":"#DIV/0!"},{"$error":"#DIV/0!"},{"$error":"#DIV/0!"},{"$error":"#DIV/0!"},{"$error":"#DIV/0!"}]
[]
[null,14,"賃金算定期間",null,{"$f":"$E$4","v":"令和８年○月支給分（〇/〇～〇/〇）※任意のひと月をご指定ください"},null,null,null,null,null,null,null,null,null,"合計"]
[null,null,"No",null,131,132,133,134,135,136,137,138,139,140]
[null,null,"従業員氏名",null,null,null,null,null,null,null,null,null,null,null,{"$f":"10-COUNTIF(E240:N240,\"\")","v":0}]
[null,null,"１月の月平均所定労働時間（※）",null,null,null,null,null,null,null,null,null,null,null,{"$f":"SUM(E241:N241)","v":0}]
[null,null,"基本賃金（基本給）",null,null,null,null,null,null,null,null,null,null,null,0]
[null,null,"手\n\n当","手当",null,null,null,null,null,null,null,null,null,null,0]
[null,null,null,"手当",null,null,null,null,null,null,null,null,null,null,0]
[null,null,null,"手当",null,null,null,null,null,null,null,null,null,null,0]
[null,null,null,"手当",null,null,null,null,null,null,null,null,null,null,0]
[null,null,null,"手当",null,null,null,null,null,null,null,null,null,null,0]
[null,null,null,"手当",null,null,null,null,null,null,null,null,null,null,0]
[null,null,null,"手当",null,null,null,null,null,null,null,null,null,null,0]
[null,null,null,"手当",null,null,null,null,null,null,null,null,null,null,0]
[null,null,null,"手当",null,null,null,null,null,null,null,null,null,null,0]
[null,null,null,"手当",null,null,null,null,null,null,null,null,null,null,0]
[null,null,"合計",null,{"$f":"SUM(E242:E252)","v":0},{"$f":"SUM(F242:F252)","v":0},0,0,0,0,0,0,0,0,{"$f":"SUM(E253:N253)","v":0}]
[null,null,"時間当たり平均賃金",null,{"$f":"E253/E241","v":{"$error":"#DIV/0!"}},{"$f":"F253/F241","v":{"$error":"#DIV/0!"}},{"$error":"#DIV/0!"},{"$error":"#DIV/0!"},{"$error":"#DIV/0!"},{"$error":"#DIV/0!"},{"$error":"#DIV/0!"},{"$error":"#DIV/0!"},{"$error":"#DIV/0!"},{"$error":"#DIV/0!"}]
[]
[null,15,"賃金算定期間",null,{"$f":"$E$4","v":"令和８年○月支給分（〇/〇～〇/〇）※任意のひと月をご指定ください"},null,null,null,null,null,null,null,null,null,"合計"]
[null,null,"No",null,141,142,143,144,145,146,147,148,149,150]
[null,null,"従業員氏名",null,null,null,null,null,null,null,null,null,null,null,{"$f":"10-COUNTIF(E258:N258,\"\")","v":0}]
[null,null,"１月の月平均所定労働時間（※）",null,null,null,null,null,null,null,null,null,null,null,{"$f":"SUM(E259:N259)","v":0}]
[null,null,"基本賃金（基本給）",null,null,null,null,null,null,null,null,null,null,null,0]
[null,null,"手\n\n当","手当",null,null,null,null,null,null,null,null,null,null,0]
[null,null,null,"手当",null,null,null,null,null,null,null,null,null,null,0]
[null,null,null,"手当",null,null,null,null,null,null,null,null,null,null,0]
[null,null,null,"手当",null,null,null,null,null,null,null,null,null,null,0]
[null,null,null,"手当",null,null,null,null,null,null,null,null,null,null,0]
[null,null,null,"手当",null,null,null,null,null,null,null,null,null,null,0]
[null,null,null,"手当",null,null,null,null,null,null,null,null,null,null,0]
[null,null,null,"手当",null,null,null,null,null,null,null,null,null,null,0]
[null,null,null,"手当",null,null,null,null,null,null,null,null,null,null,0]
[null,null,null,"手当",null,null,null,null,null,null,null,null,null,null,0]
[null,null,"合計",null,{"$f":"SUM(E260:E270)","v":0},{"$f":"SUM(F260:F270)","v":0},0,0,0,0,0,0,0,0,{"$f":"SUM(E271:N271)","v":0}]
[null,null,"時間当たり平均賃金",null,{"$f":"E271/E259","v":{"$error":"#DIV/0!"}},{"$f":"F271/F259","v":{"$error":"#DIV/0!"}},{"$error":"#DIV/0!"},{"$error":"#DIV/0!"},{"$error":"#DIV/0!"},{"$error":"#DIV/0!"},{"$error":"#DIV/0!"},{"$error":"#DIV/0!"},{"$error":"#DIV/0!"},{"$error":"#DIV/0!"}]
[]
[null,16,"賃金算定期間",null,{"$f":"$E$4","v":"令和８年○月支給分（〇/〇～〇/〇）※任意のひと月をご指定ください"},null,null,null,null,null,null,null,null,null,"合計"]
[null,null,"No",null,151,152,153,154,155,156,157,158,159,160]
[null,null,"従業員氏名",null,null,null,null,null,null,null,null,null,null,null,{"$f":"10-COUNTIF(E276:N276,\"\")","v":0}]
[null,null,"１月の月平均所定労働時間（※）",null,null,null,null,null,null,null,null,null,null,null,{"$f":"SUM(E277:N277)","v":0}]
[null,null,"基本賃金（基本給）",null,null,null,null,null,null,null,null,null,null,null,0]
[null,null,"手\n\n当","手当",null,null,null,null,null,null,null,null,null,null,0]
[null,null,null,"手当",null,null,null,null,null,null,null,null,null,null,0]
[null,null,null,"手当",null,null,null,null,null,null,null,null,null,null,0]
[null,null,null,"手当",null,null,null,null,null,null,null,null,null,null,0]
[null,null,null,"手当",null,null,null,null,null,null,null,null,null,null,0]
[null,null,null,"手当",null,null,null,null,null,null,null,null,null,null,0]
[null,null,null,"手当",null,null,null,null,null,null,null,null,null,null,0]
[null,null,null,"手当",null,null,null,null,null,null,null,null,null,null,0]
[null,null,null,"手当",null,null,null,null,null,null,null,null,null,null,0]
[null,null,null,"手当",null,null,null,null,null,null,null,null,null,null,0]
[null,null,"合計",null,{"$f":"SUM(E278:E288)","v":0},{"$f":"SUM(F278:F288)","v":0},0,0,0,0,0,0,0,0,{"$f":"SUM(E289:N289)","v":0}]
[null,null,"時間当たり平均賃金",null,{"$f":"E289/E277","v":{"$error":"#DIV/0!"}},{"$f":"F289/F277","v":{"$error":"#DIV/0!"}},{"$error":"#DIV/0!"},{"$error":"#DIV/0!"},{"$error":"#DIV/0!"},{"$error":"#DIV/0!"},{"$error":"#DIV/0!"},{"$error":"#DIV/0!"},{"$error":"#DIV/0!"},{"$error":"#DIV/0!"}]
[]
[null,17,"賃金算定期間",null,{"$f":"$E$4","v":"令和８年○月支給分（〇/〇～〇/〇）※任意のひと月をご指定ください"},null,null,null,null,null,null,null,null,null,"合計"]
[null,null,"No",null,161,162,163,164,165,166,167,168,169,170]
[null,null,"従業員氏名",null,null,null,null,null,null,null,null,null,null,null,{"$f":"10-COUNTIF(E294:N294,\"\")","v":0}]
[null,null,"１月の月平均所定労働時間（※）",null,null,null,null,null,null,null,null,null,null,null,{"$f":"SUM(E295:N295)","v":0}]
[null,null,"基本賃金（基本給）",null,null,null,null,null,null,null,null,null,null,null,0]
[null,null,"手\n\n当","手当",null,null,null,null,null,null,null,null,null,null,0]
[null,null,null,"手当",null,null,null,null,null,null,null,null,null,null,0]
[null,null,null,"手当",null,null,null,null,null,null,null,null,null,null,0]
[null,null,null,"手当",null,null,null,null,null,null,null,null,null,null,0]
[null,null,null,"手当",null,null,null,null,null,null,null,null,null,null,0]
[null,null,null,"手当",null,null,null,null,null,null,null,null,null,null,0]
[null,null,null,"手当",null,null,null,null,null,null,null,null,null,null,0]
[null,null,null,"手当",null,null,null,null,null,null,null,null,null,null,0]
[null,null,null,"手当",null,null,null,null,null,null,null,null,null,null,0]
[null,null,null,"手当",null,null,null,null,null,null,null,null,null,null,0]
[null,null,"合計",null,{"$f":"SUM(E296:E306)","v":0},{"$f":"SUM(F296:F306)","v":0},0,0,0,0,0,0,0,0,{"$f":"SUM(E307:N307)","v":0}]
[null,null,"時間当たり平均賃金",null,{"$f":"E307/E295","v":{"$error":"#DIV/0!"}},{"$f":"F307/F295","v":{"$error":"#DIV/0!"}},{"$error":"#DIV/0!"},{"$error":"#DIV/0!"},{"$error":"#DIV/0!"},{"$error":"#DIV/0!"},{"$error":"#DIV/0!"},{"$error":"#DIV/0!"},{"$error":"#DIV/0!"},{"$error":"#DIV/0!"}]
[]
[null,18,"賃金算定期間",null,{"$f":"$E$4","v":"令和８年○月支給分（〇/〇～〇/〇）※任意のひと月をご指定ください"},null,null,null,null,null,null,null,null,null,"合計"]
[null,null,"No",null,171,172,173,174,175,176,177,178,179,180]
[null,null,"従業員氏名",null,null,null,null,null,null,null,null,null,null,null,{"$f":"10-COUNTIF(E312:N312,\"\")","v":0}]
[null,null,"１月の月平均所定労働時間（※）",null,null,null,null,null,null,null,null,null,null,null,{"$f":"SUM(E313:N313)","v":0}]
[null,null,"基本賃金（基本給）",null,null,null,null,null,null,null,null,null,null,null,0]
[null,null,"手\n\n当","手当",null,null,null,null,null,null,null,null,null,null,0]
[null,null,null,"手当",null,null,null,null,null,null,null,null,null,null,0]
[null,null,null,"手当",null,null,null,null,null,null,null,null,null,null,0]
[null,null,null,"手当",null,null,null,null,null,null,null,null,null,null,0]
[null,null,null,"手当",null,null,null,null,null,null,null,null,null,null,0]
[null,null,null,"手当",null,null,null,null,null,null,null,null,null,null,0]
[null,null,null,"手当",null,null,null,null,null,null,null,null,null,null,0]
[null,null,null,"手当",null,null,null,null,null,null,null,null,null,null,0]
[null,null,null,"手当",null,null,null,null,null,null,null,null,null,null,0]
[null,null,null,"手当",null,null,null,null,null,null,null,null,null,null,0]
[null,null,"合計",null,{"$f":"SUM(E314:E324)","v":0},{"$f":"SUM(F314:F324)","v":0},0,0,0,0,0,0,0,0,{"$f":"SUM(E325:N325)","v":0}]
[null,null,"時間当たり平均賃金",null,{"$f":"E325/E313","v":{"$error":"#DIV/0!"}},{"$f":"F325/F313","v":{"$error":"#DIV/0!"}},{"$error":"#DIV/0!"},{"$error":"#DIV/0!"},{"$error":"#DIV/0!"},{"$error":"#DIV/0!"},{"$error":"#DIV/0!"},{"$error":"#DIV/0!"},{"$error":"#DIV/0!"},{"$error":"#DIV/0!"}]
[]
[null,19,"賃金算定期間",null,{"$f":"$E$4","v":"令和８年○月支給分（〇/〇～〇/〇）※任意のひと月をご指定ください"},null,null,null,null,null,null,null,null,null,"合計"]
[null,null,"No",null,181,182,183,184,185,186,187,188,189,190]
[null,null,"従業員氏名",null,null,null,null,null,null,null,null,null,null,null,{"$f":"10-COUNTIF(E330:N330,\"\")","v":0}]
[null,null,"１月の月平均所定労働時間（※）",null,null,null,null,null,null,null,null,null,null,null,{"$f":"SUM(E331:N331)","v":0}]
[null,null,"基本賃金（基本給）",null,null,null,null,null,null,null,null,null,null,null,0]
[null,null,"手\n\n当","手当",null,null,null,null,null,null,null,null,null,null,0]
[null,null,null,"手当",null,null,null,null,null,null,null,null,null,null,0]
[null,null,null,"手当",null,null,null,null,null,null,null,null,null,null,0]
[null,null,null,"手当",null,null,null,null,null,null,null,null,null,null,0]
[null,null,null,"手当",null,null,null,null,null,null,null,null,null,null,0]
[null,null,null,"手当",null,null,null,null,null,null,null,null,null,null,0]
[null,null,null,"手当",null,null,null,null,null,null,null,null,null,null,0]
[null,null,null,"手当",null,null,null,null,null,null,null,null,null,null,0]
[null,null,null,"手当",null,null,null,null,null,null,null,null,null,null,0]
[null,null,null,"手当",null,null,null,null,null,null,null,null,null,null,0]
[null,null,"合計",null,{"$f":"SUM(E332:E342)","v":0},{"$f":"SUM(F332:F342)","v":0},0,0,0,0,0,0,0,0,{"$f":"SUM(E343:N343)","v":0}]
[null,null,"時間当たり平均賃金",null,{"$f":"E343/E331","v":{"$error":"#DIV/0!"}},{"$f":"F343/F331","v":{"$error":"#DIV/0!"}},{"$error":"#DIV/0!"},{"$error":"#DIV/0!"},{"$error":"#DIV/0!"},{"$error":"#DIV/0!"},{"$error":"#DIV/0!"},{"$error":"#DIV/0!"},{"$error":"#DIV/0!"},{"$error":"#DIV/0!"}]
[]
[null,20,"賃金算定期間",null,{"$f":"$E$4","v":"令和８年○月支給分（〇/〇～〇/〇）※任意のひと月をご指定ください"},null,null,null,null,null,null,null,null,null,"合計"]
[null,null,"No",null,191,192,193,194,195,196,197,198,199,200]
[null,null,"従業員氏名",null,null,null,null,null,null,null,null,null,null,null,{"$f":"10-COUNTIF(E348:N348,\"\")","v":0}]
[null,null,"１月の月平均所定労働時間（※）",null,null,null,null,null,null,null,null,null,null,null,{"$f":"SUM(E349:N349)","v":0}]
[null,null,"基本賃金（基本給）",null,null,null,null,null,null,null,null,null,null,null,0]
[null,null,"手\n\n当","手当",null,null,null,null,null,null,null,null,null,null,0]
[null,null,null,"手当",null,null,null,null,null,null,null,null,null,null,0]
[null,null,null,"手当",null,null,null,null,null,null,null,null,null,null,0]
[null,null,null,"手当",null,null,null,null,null,null,null,null,null,null,0]
[null,null,null,"手当",null,null,null,null,null,null,null,null,null,null,0]
[null,null,null,"手当",null,null,null,null,null,null,null,null,null,null,0]
[null,null,null,"手当",null,null,null,null,null,null,null,null,null,null,0]
[null,null,null,"手当",null,null,null,null,null,null,null,null,null,null,0]
[null,null,null,"手当",null,null,null,null,null,null,null,null,null,null,0]
[null,null,null,"手当",null,null,null,null,null,null,null,null,null,null,0]
[null,null,"合計",null,{"$f":"SUM(E350:E360)","v":0},{"$f":"SUM(F350:F360)","v":0},0,0,0,0,0,0,0,0,{"$f":"SUM(E361:N361)","v":0}]
[null,null,"時間当たり平均賃金",null,{"$f":"E361/E349","v":{"$error":"#DIV/0!"}},{"$f":"F361/F349","v":{"$error":"#DIV/0!"}},{"$error":"#DIV/0!"},{"$error":"#DIV/0!"},{"$error":"#DIV/0!"},{"$error":"#DIV/0!"},{"$error":"#DIV/0!"},{"$error":"#DIV/0!"},{"$error":"#DIV/0!"},{"$error":"#DIV/0!"}]
[]
[null,21,"賃金算定期間",null,{"$f":"$E$4","v":"令和８年○月支給分（〇/〇～〇/〇）※任意のひと月をご指定ください"},null,null,null,null,null,null,null,null,null,"合計"]
[null,null,"No",null,201,202,203,204,205,206,207,208,209,210]
[null,null,"従業員氏名",null,null,null,null,null,null,null,null,null,null,null,{"$f":"10-COUNTIF(E366:N366,\"\")","v":0}]
[null,null,"１月の月平均所定労働時間（※）",null,null,null,null,null,null,null,null,null,null,null,{"$f":"SUM(E367:N367)","v":0}]
[null,null,"基本賃金（基本給）",null,null,null,null,null,null,null,null,null,null,null,0]
[null,null,"手\n\n当","手当",null,null,null,null,null,null,null,null,null,null,0]
[null,null,null,"手当",null,null,null,null,null,null,null,null,null,null,0]
[null,null,null,"手当",null,null,null,null,null,null,null,null,null,null,0]
[null,null,null,"手当",null,null,null,null,null,null,null,null,null,null,0]
[null,null,null,"手当",null,null,null,null,null,null,null,null,null,null,0]
[null,null,null,"手当",null,null,null,null,null,null,null,null,null,null,0]
[null,null,null,"手当",null,null,null,null,null,null,null,null,null,null,0]
[null,null,null,"手当",null,null,null,null,null,null,null,null,null,null,0]
[null,null,null,"手当",null,null,null,null,null,null,null,null,null,null,0]
[null,null,null,"手当",null,null,null,null,null,null,null,null,null,null,0]
[null,null,"合計",null,{"$f":"SUM(E368:E378)","v":0},{"$f":"SUM(F368:F378)","v":0},0,0,0,0,0,0,0,0,{"$f":"SUM(E379:N379)","v":0}]
[null,null,"時間当たり平均賃金",null,{"$f":"E379/E367","v":{"$error":"#DIV/0!"}},{"$f":"F379/F367","v":{"$error":"#DIV/0!"}},{"$error":"#DIV/0!"},{"$error":"#DIV/0!"},{"$error":"#DIV/0!"},{"$error":"#DIV/0!"},{"$error":"#DIV/0!"},{"$error":"#DIV/0!"},{"$error":"#DIV/0!"},{"$error":"#DIV/0!"}]
[]
[null,22,"賃金算定期間",null,{"$f":"$E$4","v":"令和８年○月支給分（〇/〇～〇/〇）※任意のひと月をご指定ください"},null,null,null,null,null,null,null,null,null,"合計"]
[null,null,"No",null,211,212,213,214,215,216,217,218,219,220]
[null,null,"従業員氏名",null,null,null,null,null,null,null,null,null,null,null,{"$f":"10-COUNTIF(E384:N384,\"\")","v":0}]
[null,null,"１月の月平均所定労働時間（※）",null,null,null,null,null,null,null,null,null,null,null,{"$f":"SUM(E385:N385)","v":0}]
[null,null,"基本賃金（基本給）",null,null,null,null,null,null,null,null,null,null,null,0]
[null,null,"手\n\n当","手当",null,null,null,null,null,null,null,null,null,null,0]
[null,null,null,"手当",null,null,null,null,null,null,null,null,null,null,0]
[null,null,null,"手当",null,null,null,null,null,null,null,null,null,null,0]
[null,null,null,"手当",null,null,null,null,null,null,null,null,null,null,0]
[null,null,null,"手当",null,null,null,null,null,null,null,null,null,null,0]
[null,null,null,"手当",null,null,null,null,null,null,null,null,null,null,0]
[null,null,null,"手当",null,null,null,null,null,null,null,null,null,null,0]
[null,null,null,"手当",null,null,null,null,null,null,null,null,null,null,0]
[null,null,null,"手当",null,null,null,null,null,null,null,null,null,null,0]
[null,null,null,"手当",null,null,null,null,null,null,null,null,null,null,0]
[null,null,"合計",null,{"$f":"SUM(E386:E396)","v":0},{"$f":"SUM(F386:F396)","v":0},0,0,0,0,0,0,0,0,{"$f":"SUM(E397:N397)","v":0}]
[null,null,"時間当たり平均賃金",null,{"$f":"E397/E385","v":{"$error":"#DIV/0!"}},{"$f":"F397/F385","v":{"$error":"#DIV/0!"}},{"$error":"#DIV/0!"},{"$error":"#DIV/0!"},{"$error":"#DIV/0!"},{"$error":"#DIV/0!"},{"$error":"#DIV/0!"},{"$error":"#DIV/0!"},{"$error":"#DIV/0!"},{"$error":"#DIV/0!"}]
[]
[null,23,"賃金算定期間",null,{"$f":"$E$4","v":"令和８年○月支給分（〇/〇～〇/〇）※任意のひと月をご指定ください"},null,null,null,null,null,null,null,null,null,"合計"]
[null,null,"No",null,221,222,223,224,225,226,227,228,229,230]
[null,null,"従業員氏名",null,null,null,null,null,null,null,null,null,null,null,{"$f":"10-COUNTIF(E402:N402,\"\")","v":0}]
[null,null,"１月の月平均所定労働時間（※）",null,null,null,null,null,null,null,null,null,null,null,{"$f":"SUM(E403:N403)","v":0}]
[null,null,"基本賃金（基本給）",null,null,null,null,null,null,null,null,null,null,null,0]
[null,null,"手\n\n当","手当",null,null,null,null,null,null,null,null,null,null,0]
[null,null,null,"手当",null,null,null,null,null,null,null,null,null,null,0]
[null,null,null,"手当",null,null,null,null,null,null,null,null,null,null,0]
[null,null,null,"手当",null,null,null,null,null,null,null,null,null,null,0]
[null,null,null,"手当",null,null,null,null,null,null,null,null,null,null,0]
[null,null,null,"手当",null,null,null,null,null,null,null,null,null,null,0]
[null,null,null,"手当",null,null,null,null,null,null,null,null,null,null,0]
[null,null,null,"手当",null,null,null,null,null,null,null,null,null,null,0]
[null,null,null,"手当",null,null,null,null,null,null,null,null,null,null,0]
[null,null,null,"手当",null,null,null,null,null,null,null,null,null,null,0]
[null,null,"合計",null,{"$f":"SUM(E404:E414)","v":0},{"$f":"SUM(F404:F414)","v":0},0,0,0,0,0,0,0,0,{"$f":"SUM(E415:N415)","v":0}]
[null,null,"時間当たり平均賃金",null,{"$f":"E415/E403","v":{"$error":"#DIV/0!"}},{"$f":"F415/F403","v":{"$error":"#DIV/0!"}},{"$error":"#DIV/0!"},{"$error":"#DIV/0!"},{"$error":"#DIV/0!"},{"$error":"#DIV/0!"},{"$error":"#DIV/0!"},{"$error":"#DIV/0!"},{"$error":"#DIV/0!"},{"$error":"#DIV/0!"}]
[]
[null,24,"賃金算定期間",null,{"$f":"$E$4","v":"令和８年○月支給分（〇/〇～〇/〇）※任意のひと月をご指定ください"},null,null,null,null,null,null,null,null,null,"合計"]
[null,null,"No",null,231,232,233,234,235,236,237,238,239,240]
[null,null,"従業員氏名",null,null,null,null,null,null,null,null,null,null,null,{"$f":"10-COUNTIF(E420:N420,\"\")","v":0}]
[null,null,"１月の月平均所定労働時間（※）",null,null,null,null,null,null,null,null,null,null,null,{"$f":"SUM(E421:N421)","v":0}]
[null,null,"基本賃金（基本給）",null,null,null,null,null,null,null,null,null,null,null,0]
[null,null,"手\n\n当","手当",null,null,null,null,null,null,null,null,null,null,0]
[null,null,null,"手当",null,null,null,null,null,null,null,null,null,null,0]
[null,null,null,"手当",null,null,null,null,null,null,null,null,null,null,0]
[null,null,null,"手当",null,null,null,null,null,null,null,null,null,null,0]
[null,null,null,"手当",null,null,null,null,null,null,null,null,null,null,0]
[null,null,null,"手当",null,null,null,null,null,null,null,null,null,null,0]
[null,null,null,"手当",null,null,null,null,null,null,null,null,null,null,0]
[null,null,null,"手当",null,null,null,null,null,null,null,null,null,null,0]
[null,null,null,"手当",null,null,null,null,null,null,null,null,null,null,0]
[null,null,null,"手当",null,null,null,null,null,null,null,null,null,null,0]
[null,null,"合計",null,{"$f":"SUM(E422:E432)","v":0},{"$f":"SUM(F422:F432)","v":0},0,0,0,0,0,0,0,0,{"$f":"SUM(E433:N433)","v":0}]
[null,null,"時間当たり平均賃金",null,{"$f":"E433/E421","v":{"$error":"#DIV/0!"}},{"$f":"F433/F421","v":{"$error":"#DIV/0!"}},{"$error":"#DIV/0!"},{"$error":"#DIV/0!"},{"$error":"#DIV/0!"},{"$error":"#DIV/0!"},{"$error":"#DIV/0!"},{"$error":"#DIV/0!"},{"$error":"#DIV/0!"},{"$error":"#DIV/0!"}]
[]
[null,25,"賃金算定期間",null,{"$f":"$E$4","v":"令和８年○月支給分（〇/〇～〇/〇）※任意のひと月をご指定ください"},null,null,null,null,null,null,null,null,null,"合計"]
[null,null,"No",null,241,242,243,244,245,246,247,248,249,250]
[null,null,"従業員氏名",null,null,null,null,null,null,null,null,null,null,null,{"$f":"10-COUNTIF(E438:N438,\"\")","v":0}]
[null,null,"１月の月平均所定労働時間（※）",null,null,null,null,null,null,null,null,null,null,null,{"$f":"SUM(E439:N439)","v":0}]
[null,null,"基本賃金（基本給）",null,null,null,null,null,null,null,null,null,null,null,0]
[null,null,"手\n\n当","手当",null,null,null,null,null,null,null,null,null,null,0]
[null,null,null,"手当",null,null,null,null,null,null,null,null,null,null,0]
[null,null,null,"手当",null,null,null,null,null,null,null,null,null,null,0]
[null,null,null,"手当",null,null,null,null,null,null,null,null,null,null,0]
[null,null,null,"手当",null,null,null,null,null,null,null,null,null,null,0]
[null,null,null,"手当",null,null,null,null,null,null,null,null,null,null,0]
[null,null,null,"手当",null,null,null,null,null,null,null,null,null,null,0]
[null,null,null,"手当",null,null,null,null,null,null,null,null,null,null,0]
[null,null,null,"手当",null,null,null,null,null,null,null,null,null,null,0]
[null,null,null,"手当",null,null,null,null,null,null,null,null,null,null,0]
[null,null,"合計",null,{"$f":"SUM(E440:E450)","v":0},{"$f":"SUM(F440:F450)","v":0},0,0,0,0,0,0,0,0,{"$f":"SUM(E451:N451)","v":0}]
[null,null,"時間当たり平均賃金",null,{"$f":"E451/E439","v":{"$error":"#DIV/0!"}},{"$f":"F451/F439","v":{"$error":"#DIV/0!"}},{"$error":"#DIV/0!"},{"$error":"#DIV/0!"},{"$error":"#DIV/0!"},{"$error":"#DIV/0!"},{"$error":"#DIV/0!"},{"$error":"#DIV/0!"},{"$error":"#DIV/0!"},{"$error":"#DIV/0!"}]
[]
[null,26,"賃金算定期間",null,{"$f":"$E$4","v":"令和８年○月支給分（〇/〇～〇/〇）※任意のひと月をご指定ください"},null,null,null,null,null,null,null,null,null,"合計"]
[null,null,"No",null,251,252,253,254,255,256,257,258,259,260]
[null,null,"従業員氏名",null,null,null,null,null,null,null,null,null,null,null,{"$f":"10-COUNTIF(E456:N456,\"\")","v":0}]
[null,null,"１月の月平均所定労働時間（※）",null,null,null,null,null,null,null,null,null,null,null,{"$f":"SUM(E457:N457)","v":0}]
[null,null,"基本賃金（基本給）",null,null,null,null,null,null,null,null,null,null,null,0]
[null,null,"手\n\n当","手当",null,null,null,null,null,null,null,null,null,null,0]
[null,null,null,"手当",null,null,null,null,null,null,null,null,null,null,0]
[null,null,null,"手当",null,null,null,null,null,null,null,null,null,null,0]
[null,null,null,"手当",null,null,null,null,null,null,null,null,null,null,0]
[null,null,null,"手当",null,null,null,null,null,null,null,null,null,null,0]
[null,null,null,"手当",null,null,null,null,null,null,null,null,null,null,0]
[null,null,null,"手当",null,null,null,null,null,null,null,null,null,null,0]
[null,null,null,"手当",null,null,null,null,null,null,null,null,null,null,0]
[null,null,null,"手当",null,null,null,null,null,null,null,null,null,null,0]
[null,null,null,"手当",null,null,null,null,null,null,null,null,null,null,0]
[null,null,"合計",null,{"$f":"SUM(E458:E468)","v":0},{"$f":"SUM(F458:F468)","v":0},0,0,0,0,0,0,0,0,{"$f":"SUM(E469:N469)","v":0}]
[null,null,"時間当たり平均賃金",null,{"$f":"E469/E457","v":{"$error":"#DIV/0!"}},{"$f":"F469/F457","v":{"$error":"#DIV/0!"}},{"$error":"#DIV/0!"},{"$error":"#DIV/0!"},{"$error":"#DIV/0!"},{"$error":"#DIV/0!"},{"$error":"#DIV/0!"},{"$error":"#DIV/0!"},{"$error":"#DIV/0!"},{"$error":"#DIV/0!"}]
[]
[null,27,"賃金算定期間",null,{"$f":"$E$4","v":"令和８年○月支給分（〇/〇～〇/〇）※任意のひと月をご指定ください"},null,null,null,null,null,null,null,null,null,"合計"]
[null,null,"No",null,261,262,263,264,265,266,267,268,269,270]
[null,null,"従業員氏名",null,null,null,null,null,null,null,null,null,null,null,{"$f":"10-COUNTIF(E474:N474,\"\")","v":0}]
[null,null,"１月の月平均所定労働時間（※）",null,null,null,null,null,null,null,null,null,null,null,{"$f":"SUM(E475:N475)","v":0}]
[null,null,"基本賃金（基本給）",null,null,null,null,null,null,null,null,null,null,null,0]
[null,null,"手\n\n当","手当",null,null,null,null,null,null,null,null,null,null,0]
[null,null,null,"手当",null,null,null,null,null,null,null,null,null,null,0]
[null,null,null,"手当",null,null,null,null,null,null,null,null,null,null,0]
[null,null,null,"手当",null,null,null,null,null,null,null,null,null,null,0]
[null,null,null,"手当",null,null,null,null,null,null,null,null,null,null,0]
[null,null,null,"手当",null,null,null,null,null,null,null,null,null,null,0]
[null,null,null,"手当",null,null,null,null,null,null,null,null,null,null,0]
[null,null,null,"手当",null,null,null,null,null,null,null,null,null,null,0]
[null,null,null,"手当",null,null,null,null,null,null,null,null,null,null,0]
[null,null,null,"手当",null,null,null,null,null,null,null,null,null,null,0]
[null,null,"合計",null,{"$f":"SUM(E476:E486)","v":0},{"$f":"SUM(F476:F486)","v":0},0,0,0,0,0,0,0,0,{"$f":"SUM(E487:N487)","v":0}]
[null,null,"時間当たり平均賃金",null,{"$f":"E487/E475","v":{"$error":"#DIV/0!"}},{"$f":"F487/F475","v":{"$error":"#DIV/0!"}},{"$error":"#DIV/0!"},{"$error":"#DIV/0!"},{"$error":"#DIV/0!"},{"$error":"#DIV/0!"},{"$error":"#DIV/0!"},{"$error":"#DIV/0!"},{"$error":"#DIV/0!"},{"$error":"#DIV/0!"}]
[]
[null,28,"賃金算定期間",null,{"$f":"$E$4","v":"令和８年○月支給分（〇/〇～〇/〇）※任意のひと月をご指定ください"},null,null,null,null,null,null,null,null,null,"合計"]
[null,null,"No",null,271,272,273,274,275,276,277,278,279,280]
[null,null,"従業員氏名",null,null,null,null,null,null,null,null,null,null,null,{"$f":"10-COUNTIF(E492:N492,\"\")","v":0}]
[null,null,"１月の月平均所定労働時間（※）",null,null,null,null,null,null,null,null,null,null,null,{"$f":"SUM(E493:N493)","v":0}]
[null,null,"基本賃金（基本給）",null,null,null,null,null,null,null,null,null,null,null,0]
[null,null,"手\n\n当","手当",null,null,null,null,null,null,null,null,null,null,0]
[null,null,null,"手当",null,null,null,null,null,null,null,null,null,null,0]
[null,null,null,"手当",null,null,null,null,null,null,null,null,null,null,0]
[null,null,null,"手当",null,null,null,null,null,null,null,null,null,null,0]
[null,null,null,"手当",null,null,null,null,null,null,null,null,null,null,0]
[null,null,null,"手当",null,null,null,null,null,null,null,null,null,null,0]
[null,null,null,"手当",null,null,null,null,null,null,null,null,null,null,0]
[null,null,null,"手当",null,null,null,null,null,null,null,null,null,null,0]
[null,null,null,"手当",null,null,null,null,null,null,null,null,null,null,0]
[null,null,null,"手当",null,null,null,null,null,null,null,null,null,null,0]
[null,null,"合計",null,{"$f":"SUM(E494:E504)","v":0},{"$f":"SUM(F494:F504)","v":0},0,0,0,0,0,0,0,0,{"$f":"SUM(E505:N505)","v":0}]
[null,null,"時間当たり平均賃金",null,{"$f":"E505/E493","v":{"$error":"#DIV/0!"}},{"$f":"F505/F493","v":{"$error":"#DIV/0!"}},{"$error":"#DIV/0!"},{"$error":"#DIV/0!"},{"$error":"#DIV/0!"},{"$error":"#DIV/0!"},{"$error":"#DIV/0!"},{"$error":"#DIV/0!"},{"$error":"#DIV/0!"},{"$error":"#DIV/0!"}]
[]
[null,29,"賃金算定期間",null,{"$f":"$E$4","v":"令和８年○月支給分（〇/〇～〇/〇）※任意のひと月をご指定ください"},null,null,null,null,null,null,null,null,null,"合計"]
[null,null,"No",null,281,282,283,284,285,286,287,288,289,290]
[null,null,"従業員氏名",null,null,null,null,null,null,null,null,null,null,null,{"$f":"10-COUNTIF(E510:N510,\"\")","v":0}]
[null,null,"１月の月平均所定労働時間（※）",null,null,null,null,null,null,null,null,null,null,null,{"$f":"SUM(E511:N511)","v":0}]
[null,null,"基本賃金（基本給）",null,null,null,null,null,null,null,null,null,null,null,0]
[null,null,"手\n\n当","手当",null,null,null,null,null,null,null,null,null,null,0]
[null,null,null,"手当",null,null,null,null,null,null,null,null,null,null,0]
[null,null,null,"手当",null,null,null,null,null,null,null,null,null,null,0]
[null,null,null,"手当",null,null,null,null,null,null,null,null,null,null,0]
[null,null,null,"手当",null,null,null,null,null,null,null,null,null,null,0]
[null,null,null,"手当",null,null,null,null,null,null,null,null,null,null,0]
[null,null,null,"手当",null,null,null,null,null,null,null,null,null,null,0]
[null,null,null,"手当",null,null,null,null,null,null,null,null,null,null,0]
[null,null,null,"手当",null,null,null,null,null,null,null,null,null,null,0]
[null,null,null,"手当",null,null,null,null,null,null,null,null,null,null,0]
[null,null,"合計",null,{"$f":"SUM(E512:E522)","v":0},{"$f":"SUM(F512:F522)","v":0},0,0,0,0,0,0,0,0,{"$f":"SUM(E523:N523)","v":0}]
[null,null,"時間当たり平均賃金",null,{"$f":"E523/E511","v":{"$error":"#DIV/0!"}},{"$f":"F523/F511","v":{"$error":"#DIV/0!"}},{"$error":"#DIV/0!"},{"$error":"#DIV/0!"},{"$error":"#DIV/0!"},{"$error":"#DIV/0!"},{"$error":"#DIV/0!"},{"$error":"#DIV/0!"},{"$error":"#DIV/0!"},{"$error":"#DIV/0!"}]
[]
[null,30,"賃金算定期間",null,{"$f":"$E$4","v":"令和８年○月支給分（〇/〇～〇/〇）※任意のひと月をご指定ください"},null,null,null,null,null,null,null,null,null,"合計"]
[null,null,"No",null,291,292,293,294,295,296,297,298,299,300]
[null,null,"従業員氏名",null,null,null,null,null,null,null,null,null,null,null,{"$f":"10-COUNTIF(E528:N528,\"\")","v":0}]
[null,null,"１月の月平均所定労働時間（※）",null,null,null,null,null,null,null,null,null,null,null,{"$f":"SUM(E529:N529)","v":0}]
[null,null,"基本賃金（基本給）",null,null,null,null,null,null,null,null,null,null,null,0]
[null,null,"手\n\n当","手当",null,null,null,null,null,null,null,null,null,null,0]
[null,null,null,"手当",null,null,null,null,null,null,null,null,null,null,0]
[null,null,null,"手当",null,null,null,null,null,null,null,null,null,null,0]
[null,null,null,"手当",null,null,null,null,null,null,null,null,null,null,0]
[null,null,null,"手当",null,null,null,null,null,null,null,null,null,null,0]
[null,null,null,"手当",null,null,null,null,null,null,null,null,null,null,0]
[null,null,null,"手当",null,null,null,null,null,null,null,null,null,null,0]
[null,null,null,"手当",null,null,null,null,null,null,null,null,null,null,0]
[null,null,null,"手当",null,null,null,null,null,null,null,null,null,null,0]
[null,null,null,"手当",null,null,null,null,null,null,null,null,null,null,0]
[null,null,"合計",null,{"$f":"SUM(E530:E540)","v":0},{"$f":"SUM(F530:F540)","v":0},0,0,0,0,0,0,0,0,{"$f":"SUM(E541:N541)","v":0}]
[null,null,"時間当たり平均賃金",null,{"$f":"E541/E529","v":{"$error":"#DIV/0!"}},{"$f":"F541/F529","v":{"$error":"#DIV/0!"}},{"$error":"#DIV/0!"},{"$error":"#DIV/0!"},{"$error":"#DIV/0!"},{"$error":"#DIV/0!"},{"$error":"#DIV/0!"},{"$error":"#DIV/0!"},{"$error":"#DIV/0!"},{"$error":"#DIV/0!"}]

{"sheet":"1号-⑤(賃金引上げ計画の表明書※申請日以後の賃上げのみ必要)","index":3,"n_rows":14,"n_cols":6,"rows_kept":14,"cut":false,"hidden":false,"merged":[[1,1,1,6],[3,1,4,6],[7,1,7,4],[13,1,13,5],[14,3,14,5]]}
[null,"様式第1号 - ⑤"]
[null,"賃金引き上げ計画の表明書"]
[]
[null,"　当社は、事業完了日までに常時使用する従業員の平均賃金を３．５％以上増加させることを表明いたします。"]
[]
[]
[null,"令和８年",null,"月",null,"日"]
[null,"事業者所在地："]
[null,null,null,null,null,"（補助事業実施場所を記載）"]
[null,"事業者名："]
[null,"代表者氏名："]
[]
[]
[null,"従業員に対し、どのように今後の賃上げを表明したかを明記してください。\n（例：全従業員へのメール、社内掲示板への掲示など）\n※口頭での表明は不可。用紙配布やメール等記録に残る方法に限る。"]